Body name,Directorate,Service Area Categorisation,Supplier Name,Date,Net Amount,Purpose of Spend,Procurement Classification: ProClass Label,
Solihull MBC,Managed Growth,Environmental and Regulatory Services,608 Equine And Farm Ve ,05/10/2015,281.49,Purchase Card Statement Summary,211100 - Furniture & Soft Furnishings - Domestic Furniture,
Solihull MBC,Managed Growth,Environmental and Regulatory Services,608 Vets Solihull ,05/10/2015,88.13,Purchase Card Statement Summary,111200 - Catering - Food & Beverages,
Solihull MBC,Children's Services & Skills,Children & Education Services,99P Stores ,05/10/2015,3.96,Purchase Card Statement Summary,111200 - Catering - Food & Beverages,
Solihull MBC,Communities & Adult Social Care,Adult Social Care,99P Stores Ltd ,05/10/2015,4.95,Purchase Card Statement Summary,111200 - Catering - Food & Beverages,
Solihull MBC,Children's Services - DSG Schools - Non DMT,Children & Education Services,99P Stores Ltd ,05/10/2015,29.9,Purchase Card Statement Summary,111200 - Catering - Food & Beverages,
Solihull MBC,Children's Services - DSG Schools - Non DMT,Children & Education Services,99P Stores Ltd ,05/10/2015,34.65,Purchase Card Statement Summary,111200 - Catering - Food & Beverages,
Solihull MBC,Children's Services - DSG Schools - Non DMT,Children & Education Services,A J M (1988) Ltd ,05/10/2015,26.99,Purchase Card Statement Summary,101400 - Building Construction Materials - General Materials,
Solihull MBC,Children's Services - DSG Schools - Non DMT,Children & Education Services,A J M (1988) Ltd ,05/10/2015,72.00,Purchase Card Statement Summary,101400 - Building Construction Materials - General Materials,
Solihull MBC,Children's Services - DSG Schools - Non DMT,Children & Education Services,Acocks Green Bowl ,05/10/2015,60.00,Purchase Card Statement Summary,291400 - Arts & Leisure Services - Sport & Fitness,
Solihull MBC,Children's Services - DSG Schools - Non DMT,Children & Education Services,Acocks Green Bowl ,05/10/2015,63.50,Purchase Card Statement Summary,291400 - Arts & Leisure Services - Sport & Fitness,
Solihull MBC,Children's Services & Skills,Children & Education Services,Action Self Drive Ltd ,05/10/2015,60,Purchase Card Statement Summary,381210 - Vehicle Management - Hire,
Solihull MBC,Children's Services & Skills,Children & Education Services,Alan Warwick ,05/10/2015,10.00,Purchase Card Statement Summary,111200 - Catering - Food & Beverages,
Solihull MBC,Children's Services & Skills,Children & Education Services,Aldi ,05/10/2015,4.50,Purchase Card Statement Summary,111200 - Catering - Food & Beverages,
Solihull MBC,Communities & Adult Social Care,Adult Social Care,Aldi ,05/10/2015,5.31,Purchase Card Statement Summary,111200 - Catering - Food & Beverages,
Solihull MBC,Children's Services - DSG Schools - Non DMT,Children & Education Services,Aldi ,05/10/2015,6.67,Purchase Card Statement Summary,111200 - Catering - Food & Beverages,
Solihull MBC,Communities & Adult Social Care,Adult Social Care,Aldi ,05/10/2015,7.44,Purchase Card Statement Summary,111200 - Catering - Food & Beverages,
Solihull MBC,Communities & Adult Social Care,Adult Social Care,Aldi ,05/10/2015,8.27,Purchase Card Statement Summary,111200 - Catering - Food & Beverages,
Solihull MBC,Communities & Adult Social Care,Adult Social Care,Aldi ,05/10/2015,9.02,Purchase Card Statement Summary,111200 - Catering - Food & Beverages,
Solihull MBC,Communities & Adult Social Care,Adult Social Care,Aldi ,05/10/2015,9.15,Purchase Card Statement Summary,111200 - Catering - Food & Beverages,
Solihull MBC,Communities & Adult Social Care,Adult Social Care,Aldi ,05/10/2015,9.76,Purchase Card Statement Summary,111200 - Catering - Food & Beverages,
Solihull MBC,Communities & Adult Social Care,Adult Social Care,Aldi ,05/10/2015,9.78,Purchase Card Statement Summary,111200 - Catering - Food & Beverages,
Solihull MBC,Communities & Adult Social Care,Adult Social Care,Aldi ,05/10/2015,9.83,Purchase Card Statement Summary,111200 - Catering - Food & Beverages,
Solihull MBC,Children's Services - DSG Schools - Non DMT,Children & Education Services,Aldi ,05/10/2015,11.04,Purchase Card Statement Summary,111200 - Catering - Food & Beverages,
Solihull MBC,Communities & Adult Social Care,Adult Social Care,Aldi ,05/10/2015,11.12,Purchase Card Statement Summary,111200 - Catering - Food & Beverages,
Solihull MBC,Communities & Adult Social Care,Adult Social Care,Aldi ,05/10/2015,11.38,Purchase Card Statement Summary,111200 - Catering - Food & Beverages,
Solihull MBC,Communities & Adult Social Care,Adult Social Care,Aldi ,05/10/2015,11.58,Purchase Card Statement Summary,111200 - Catering - Food & Beverages,
Solihull MBC,Communities & Adult Social Care,Adult Social Care,Aldi ,05/10/2015,11.82,Purchase Card Statement Summary,111200 - Catering - Food & Beverages,
Solihull MBC,Communities & Adult Social Care,Adult Social Care,Aldi ,05/10/2015,12.30,Purchase Card Statement Summary,111200 - Catering - Food & Beverages,
Solihull MBC,Communities & Adult Social Care,Adult Social Care,Aldi ,05/10/2015,14.68,Purchase Card Statement Summary,111200 - Catering - Food & Beverages,
Solihull MBC,Communities & Adult Social Care,Adult Social Care,Aldi ,05/10/2015,15.13,Purchase Card Statement Summary,111200 - Catering - Food & Beverages,
Solihull MBC,Communities & Adult Social Care,Adult Social Care,Aldi ,05/10/2015,15.88,Purchase Card Statement Summary,111200 - Catering - Food & Beverages,
Solihull MBC,Children's Services - DSG Schools - Non DMT,Children & Education Services,Aldi ,05/10/2015,15.90,Purchase Card Statement Summary,111200 - Catering - Food & Beverages,
Solihull MBC,Communities & Adult Social Care,Adult Social Care,Aldi ,05/10/2015,18.31,Purchase Card Statement Summary,111200 - Catering - Food & Beverages,
Solihull MBC,Communities & Adult Social Care,Adult Social Care,Aldi ,05/10/2015,25.50,Purchase Card Statement Summary,111200 - Catering - Food & Beverages,
Solihull MBC,Communities & Adult Social Care,Adult Social Care,Aldi ,05/10/2015,47.88,Purchase Card Statement Summary,111200 - Catering - Food & Beverages,
Solihull MBC,Communities & Adult Social Care,Adult Social Care,Aldi ,05/10/2015,56.21,Purchase Card Statement Summary,111200 - Catering - Food & Beverages,
Solihull MBC,Communities & Adult Social Care,Adult Social Care,Aldi ,05/10/2015,56.46,Purchase Card Statement Summary,111200 - Catering - Food & Beverages,
Solihull MBC,Children's Services & Skills,Children & Education Services,Aldi ,05/10/2015,62.80,Purchase Card Statement Summary,111200 - Catering - Food & Beverages,
Solihull MBC,Communities & Adult Social Care,Adult Social Care,Aldi ,05/10/2015,64.26,Purchase Card Statement Summary,111200 - Catering - Food & Beverages,
Solihull MBC,Communities & Adult Social Care,Adult Social Care,Aldi ,05/10/2015,71.35,Purchase Card Statement Summary,111200 - Catering - Food & Beverages,
Solihull MBC,Communities & Adult Social Care,Adult Social Care,Aldi ,05/10/2015,77.87,Purchase Card Statement Summary,111200 - Catering - Food & Beverages,
Solihull MBC,Communities & Adult Social Care,Adult Social Care,Aldi ,05/10/2015,80.62,Purchase Card Statement Summary,111200 - Catering - Food & Beverages,
Solihull MBC,Communities & Adult Social Care,Adult Social Care,Aldi ,05/10/2015,85.88,Purchase Card Statement Summary,111200 - Catering - Food & Beverages,
Solihull MBC,Communities & Adult Social Care,Adult Social Care,Aldi ,05/10/2015,86.96,Purchase Card Statement Summary,111200 - Catering - Food & Beverages,
Solihull MBC,Communities & Adult Social Care,Adult Social Care,Aldi ,05/10/2015,87.43,Purchase Card Statement Summary,111200 - Catering - Food & Beverages,
Solihull MBC,Communities & Adult Social Care,Adult Social Care,Aldi ,05/10/2015,88.55,Purchase Card Statement Summary,111200 - Catering - Food & Beverages,
Solihull MBC,Communities & Adult Social Care,Adult Social Care,Aldi ,05/10/2015,96.24,Purchase Card Statement Summary,161000 - Domestic Goods - Commercial,
Solihull MBC,Communities & Adult Social Care,Adult Social Care,Aldi ,05/10/2015,99.22,Purchase Card Statement Summary,261600 - Human Resources - Travel & Subsistence,
Solihull MBC,Communities & Adult Social Care,Adult Social Care,Aldi ,05/10/2015,101.67,Purchase Card Statement Summary,111200 - Catering - Food & Beverages,
Solihull MBC,Communities & Adult Social Care,Adult Social Care,Amazon Svcs Europe-Sar,14/08/2015,13.04,Purchase Card Statement Summary,171114 - Education - Literature,
Solihull MBC,Children's Services - DSG Schools - Non DMT,Children & Education Services,Amazon Svcs Europe-Sar ,05/10/2015,1.18,Purchase Card Statement Summary,171114 - Education - Literature,
Solihull MBC,Children's Services - DSG Schools - Non DMT,Children & Education Services,Amazon Svcs Europe-Sar ,05/10/2015,1.36,Purchase Card Statement Summary,171114 - Education - Literature,
Solihull MBC,Children's Services - DSG Schools - Non DMT,Children & Education Services,Amazon Svcs Europe-Sar ,05/10/2015,4.24,Purchase Card Statement Summary,171114 - Education - Literature,
Solihull MBC,Children's Services - DSG Schools - Non DMT,Children & Education Services,Amazon Svcs Europe-Sar ,05/10/2015,5.58,Purchase Card Statement Summary,171114 - Education - Literature,
Solihull MBC,Children's Services - DSG Schools - Non DMT,Children & Education Services,Amazon Svcs Europe-Sar ,05/10/2015,6.99,Purchase Card Statement Summary,171114 - Education - Literature,
Solihull MBC,Children's Services - DSG Schools - Non DMT,Children & Education Services,Amazon Svcs Europe-Sar ,05/10/2015,7.47,Purchase Card Statement Summary,171114 - Education - Literature,
Solihull MBC,Children's Services - DSG Schools - Non DMT,Children & Education Services,Amazon Svcs Europe-Sar ,05/10/2015,8.29,Purchase Card Statement Summary,171114 - Education - Literature,
Solihull MBC,Children's Services - DSG Schools - Non DMT,Children & Education Services,Amazon Svcs Europe-Sar ,05/10/2015,9.97,Purchase Card Statement Summary,171114 - Education - Literature,
Solihull MBC,Children's Services - DSG Schools - Non DMT,Children & Education Services,Amazon Svcs Europe-Sar ,05/10/2015,12.60,Purchase Card Statement Summary,171114 - Education - Literature,
Solihull MBC,Resources,Central Services to the Public,Amazon Svcs Europe-Sar ,05/10/2015,12.99,Purchase Card Statement Summary,171114 - Education - Literature,
Solihull MBC,Children's Services - DSG Schools - Non DMT,Children & Education Services,Amazon Svcs Europe-Sar ,05/10/2015,14.94,Purchase Card Statement Summary,171114 - Education - Literature,
Solihull MBC,Children's Services - DSG Schools - Non DMT,Children & Education Services,Amazon Svcs Europe-Sar ,05/10/2015,16.52,Purchase Card Statement Summary,171114 - Education - Literature,
Solihull MBC,Children's Services - DSG Central.,Children & Education Services,Amazon Svcs Europe-Sar ,05/10/2015,17.40,Purchase Card Statement Summary,171114 - Education - Literature,
Solihull MBC,Resources,Central Services to the Public,Amazon Svcs Europe-Sar ,05/10/2015,29.39,Purchase Card Statement Summary,171114 - Education - Literature,
Solihull MBC,Children's Services - DSG Schools - Non DMT,Children & Education Services,Amazon Svcs Europe-Sar ,05/10/2015,76.11,Purchase Card Statement Summary,171114 - Education - Literature,
Solihull MBC,Resources,Central Services to the Public,Amazon UK Marketplace,20/08/2015,6.65,Purchase Card Statement Summary,161000 - Domestic Goods - Commercial,
Solihull MBC,Children's Services & Skills,Children & Education Services,Amazon UK Marketplace,19/08/2015,7.44,General Office Expenses,161000 - Domestic Goods - Commercial,
Solihull MBC,Governance  ,Corporate & Democratic Core,Amazon UK Marketplace,12/08/2015,10.24,Materials,161000 - Domestic Goods - Commercial,
Solihull MBC,Resources,Central Services to the Public,Amazon UK Marketplace,25/08/2015,15.41,Purchase Card Statement Summary,161000 - Domestic Goods - Commercial,
Solihull MBC,Children's Services - DSG Central.,Children & Education Services,Amazon UK Marketplace,19/08/2015,19.92,Materials,161000 - Domestic Goods - Commercial,
Solihull MBC,Children's Services & Skills,Children & Education Services,Amazon UK Marketplace,18/08/2015,31.98,General Office Expenses,161000 - Domestic Goods - Commercial,
Solihull MBC,Managed Growth,Highways & Transport Services,Amazon UK Marketplace,13/08/2015,32.80,Materials,171114 - Education - Literature,
Solihull MBC,Resources,Central Services to the Public,Amazon UK Marketplace,26/08/2015,64.38,Purchase Card Statement Summary,171114 - Education - Literature,
Solihull MBC,Governance  ,Corporate & Democratic Core,Amazon UK Marketplace,12/08/2015,80.00,Materials,161000 - Domestic Goods - Commercial,
Solihull MBC,Communities & Adult Social Care,Adult Social Care,Amazon UK Marketplace ,05/10/2015,1.4,Purchase Card Statement Summary,161000 - Domestic Goods - Commercial,
Solihull MBC,Children's Services - DSG Schools - Non DMT,Children & Education Services,Amazon UK Marketplace ,05/10/2015,2.30,Purchase Card Statement Summary,161000 - Domestic Goods - Commercial,
Solihull MBC,Communities & Adult Social Care,Adult Social Care,Amazon UK Marketplace ,05/10/2015,3.10,Purchase Card Statement Summary,171114 - Education - Literature,
Solihull MBC,Resources,Central Services to the Public,Amazon UK Marketplace ,05/10/2015,3.70,Purchase Card Statement Summary,161000 - Domestic Goods - Commercial,
Solihull MBC,Children's Services - DSG Schools - Non DMT,Children & Education Services,Amazon UK Marketplace ,05/10/2015,4.28,Purchase Card Statement Summary,161000 - Domestic Goods - Commercial,
Solihull MBC,Children's Services - DSG Schools - Non DMT,Children & Education Services,Amazon UK Marketplace ,05/10/2015,5.24,Purchase Card Statement Summary,161000 - Domestic Goods - Commercial,
Solihull MBC,Children's Services - DSG Schools - Non DMT,Children & Education Services,Amazon UK Marketplace ,05/10/2015,5.88,Purchase Card Statement Summary,171114 - Education - Literature,
Solihull MBC,Children's Services - DSG Schools - Non DMT,Children & Education Services,Amazon UK Marketplace ,05/10/2015,6.57,Purchase Card Statement Summary,161000 - Domestic Goods - Commercial,
Solihull MBC,Managed Growth - HRA,Housing Revenue Account,Amazon UK Marketplace ,05/10/2015,8.89,General Debtors,161000 - Domestic Goods - Commercial,
Solihull MBC,Managed Growth - HRA,Housing Revenue Account,Amazon UK Marketplace ,05/10/2015,9.75,General Debtors,171114 - Education - Literature,
Solihull MBC,Children's Services - DSG Schools - Non DMT,Children & Education Services,Amazon UK Marketplace ,05/10/2015,10.44,Purchase Card Statement Summary,171114 - Education - Literature,
Solihull MBC,Children's Services - DSG Schools - Non DMT,Children & Education Services,Amazon UK Marketplace ,05/10/2015,10.77,Purchase Card Statement Summary,161000 - Domestic Goods - Commercial,
Solihull MBC,Children's Services - DSG Schools - Non DMT,Children & Education Services,Amazon UK Marketplace ,05/10/2015,11.33,Purchase Card Statement Summary,171114 - Education - Literature,
Solihull MBC,Children's Services - DSG Schools - Non DMT,Children & Education Services,Amazon UK Marketplace ,05/10/2015,11.96,Purchase Card Statement Summary,171114 - Education - Literature,
Solihull MBC,Children's Services & Skills,Children & Education Services,Amazon UK Marketplace ,05/10/2015,12.25,Purchase Card Statement Summary,161000 - Domestic Goods - Commercial,
Solihull MBC,Resources,Central Services to the Public,Amazon UK Marketplace ,05/10/2015,12.40,Purchase Card Statement Summary,161000 - Domestic Goods - Commercial,
Solihull MBC,Communities & Adult Social Care,Adult Social Care,Amazon UK Marketplace ,05/10/2015,12.84,Purchase Card Statement Summary,161000 - Domestic Goods - Commercial,
Solihull MBC,Children's Services - DSG Central.,Children & Education Services,Amazon UK Marketplace ,05/10/2015,12.9,Purchase Card Statement Summary,161000 - Domestic Goods - Commercial,
Solihull MBC,Children's Services - DSG Schools - Non DMT,Children & Education Services,Amazon UK Marketplace ,05/10/2015,12.95,Purchase Card Statement Summary,171114 - Education - Literature,
Solihull MBC,Communities & Adult Social Care,Adult Social Care,Amazon UK Marketplace ,05/10/2015,13.39,Purchase Card Statement Summary,161000 - Domestic Goods - Commercial,
Solihull MBC,Children's Services - DSG Schools - Non DMT,Children & Education Services,Amazon UK Marketplace ,05/10/2015,13.75,Purchase Card Statement Summary,161000 - Domestic Goods - Commercial,
Solihull MBC,Children's Services - DSG Schools - Non DMT,Children & Education Services,Amazon UK Marketplace ,05/10/2015,14.98,Purchase Card Statement Summary,161000 - Domestic Goods - Commercial,
Solihull MBC,Resources,Central Services to the Public,Amazon UK Marketplace ,05/10/2015,15.00,Purchase Card Statement Summary,161000 - Domestic Goods - Commercial,
Solihull MBC,Resources,Central Services to the Public,Amazon UK Marketplace ,05/10/2015,15.48,Purchase Card Statement Summary,161000 - Domestic Goods - Commercial,
Solihull MBC,Children's Services - DSG Schools - Non DMT,Children & Education Services,Amazon UK Marketplace ,05/10/2015,18.4,Purchase Card Statement Summary,161000 - Domestic Goods - Commercial,
Solihull MBC,Children's Services - DSG Schools - Non DMT,Children & Education Services,Amazon UK Marketplace ,05/10/2015,18.94,Purchase Card Statement Summary,161000 - Domestic Goods - Commercial,
Solihull MBC,Resources,Central Services to the Public,Amazon UK Marketplace ,05/10/2015,20.49,Purchase Card Statement Summary,171114 - Education - Literature,
Solihull MBC,Children's Services - DSG Schools - Non DMT,Children & Education Services,Amazon UK Marketplace ,05/10/2015,22.48,Purchase Card Statement Summary,161000 - Domestic Goods - Commercial,
Solihull MBC,Children's Services - DSG Schools - Non DMT,Children & Education Services,Amazon UK Marketplace ,05/10/2015,22.74,Purchase Card Statement Summary,161000 - Domestic Goods - Commercial,
Solihull MBC,Children's Services - DSG Schools - Non DMT,Children & Education Services,Amazon UK Marketplace ,05/10/2015,25.65,Purchase Card Statement Summary,171114 - Education - Literature,
Solihull MBC,Children's Services - DSG Schools - Non DMT,Children & Education Services,Amazon UK Marketplace ,05/10/2015,27.9,Purchase Card Statement Summary,161000 - Domestic Goods - Commercial,
Solihull MBC,Children's Services - DSG Schools - Non DMT,Children & Education Services,Amazon UK Marketplace ,05/10/2015,27.94,Purchase Card Statement Summary,161000 - Domestic Goods - Commercial,
Solihull MBC,Children's Services - DSG Schools - Non DMT,Children & Education Services,Amazon UK Marketplace ,05/10/2015,27.97,Purchase Card Statement Summary,161000 - Domestic Goods - Commercial,
Solihull MBC,Communities & Adult Social Care,Adult Social Care,Amazon UK Marketplace ,05/10/2015,28.95,Purchase Card Statement Summary,161000 - Domestic Goods - Commercial,
Solihull MBC,Children's Services - DSG Schools - Non DMT,Children & Education Services,Amazon UK Marketplace ,05/10/2015,31.99,Purchase Card Statement Summary,161000 - Domestic Goods - Commercial,
Solihull MBC,Communities & Adult Social Care,Adult Social Care,Amazon UK Marketplace ,05/10/2015,35.79,Purchase Card Statement Summary,161000 - Domestic Goods - Commercial,
Solihull MBC,Managed Growth - HRA,Housing Revenue Account,Amazon UK Marketplace ,05/10/2015,38.24,General Debtors,171114 - Education - Literature,
Solihull MBC,Managed Growth - HRA,Housing Revenue Account,Amazon UK Marketplace ,05/10/2015,38.95,General Debtors,171114 - Education - Literature,
Solihull MBC,Children's Services - DSG Schools - Non DMT,Children & Education Services,Amazon UK Marketplace ,05/10/2015,44.99,Purchase Card Statement Summary,161000 - Domestic Goods - Commercial,
Solihull MBC,Communities & Adult Social Care,Adult Social Care,Amazon UK Marketplace ,05/10/2015,57.99,Purchase Card Statement Summary,171114 - Education - Literature,
Solihull MBC,Children's Services - DSG Schools - Non DMT,Children & Education Services,Amazon UK Marketplace ,05/10/2015,103.35,Purchase Card Statement Summary,111100 - Catering - Equipment & Utensils,
Solihull MBC,Resources,Central Services to the Public,Amazon UK Retail,10/08/2015,10.80,Furniture & Equipment,161000 - Domestic Goods - Commercial,
Solihull MBC,Resources,Central Services to the Public,Amazon UK Retail,08/08/2015,13.52,IT Equipment & Software,161000 - Domestic Goods - Commercial,
Solihull MBC,Governance  ,Central Services to the Public,Amazon UK Retail,05/08/2015,20.39,Purchase Card Statement Summary,161000 - Domestic Goods - Commercial,
Solihull MBC,Children's Services & Skills,Children & Education Services,Amazon UK Retail,19/08/2015,22.20,Training,161000 - Domestic Goods - Commercial,
Solihull MBC,Resources,Central Services to the Public,Amazon UK Retail,20/08/2015,32.53,Purchase Card Statement Summary,161000 - Domestic Goods - Commercial,
Solihull MBC,Resources,Central Services to the Public,Amazon UK Retail,07/08/2015,35.63,Training,161000 - Domestic Goods - Commercial,
Solihull MBC,Resources,Central Services to the Public,Amazon UK Retail,29/08/2015,211.58,IT Equipment & Software,161000 - Domestic Goods - Commercial,
Solihull MBC,Resources,Central Services to the Public,Amazon UK Retail,06/08/2015,215.66,IT Equipment & Software,161000 - Domestic Goods - Commercial,
Solihull MBC,Children's Services - DSG Schools - Non DMT,Children & Education Services,Amazon UK Retail ,05/10/2015,6.55,Purchase Card Statement Summary,161000 - Domestic Goods - Commercial,
Solihull MBC,Children's Services - DSG Schools - Non DMT,Children & Education Services,Amazon UK Retail ,05/10/2015,8.74,Purchase Card Statement Summary,161000 - Domestic Goods - Commercial,
Solihull MBC,Children's Services - DSG Schools - Non DMT,Children & Education Services,Amazon UK Retail ,05/10/2015,10.39,Purchase Card Statement Summary,161000 - Domestic Goods - Commercial,
Solihull MBC,Children's Services - DSG Schools - Non DMT,Children & Education Services,Amazon UK Retail ,05/10/2015,10.63,Purchase Card Statement Summary,161000 - Domestic Goods - Commercial,
Solihull MBC,Children's Services - DSG Schools - Non DMT,Children & Education Services,Amazon UK Retail ,05/10/2015,10.88,Purchase Card Statement Summary,161000 - Domestic Goods - Commercial,
Solihull MBC,Children's Services - DSG Schools - Non DMT,Children & Education Services,Amazon UK Retail ,05/10/2015,13.16,Purchase Card Statement Summary,161000 - Domestic Goods - Commercial,
Solihull MBC,Children's Services - DSG Schools - Non DMT,Children & Education Services,Amazon UK Retail ,05/10/2015,14.49,Purchase Card Statement Summary,161000 - Domestic Goods - Commercial,
Solihull MBC,Children's Services - DSG Schools - Non DMT,Children & Education Services,Amazon UK Retail ,05/10/2015,14.50,Purchase Card Statement Summary,161000 - Domestic Goods - Commercial,
Solihull MBC,Resources,Central Services to the Public,Amazon UK Retail ,05/10/2015,16.01,Purchase Card Statement Summary,161000 - Domestic Goods - Commercial,
Solihull MBC,Children's Services & Skills,Children & Education Services,Amazon UK Retail ,05/10/2015,19.49,Purchase Card Statement Summary,161000 - Domestic Goods - Commercial,
Solihull MBC,Children's Services - DSG Schools - Non DMT,Children & Education Services,Amazon UK Retail ,05/10/2015,19.99,Purchase Card Statement Summary,161000 - Domestic Goods - Commercial,
Solihull MBC,Resources,Central Services to the Public,Amazon UK Retail ,05/10/2015,25.75,Purchase Card Statement Summary,161000 - Domestic Goods - Commercial,
Solihull MBC,Children's Services - DSG Schools - Non DMT,Children & Education Services,Amazon UK Retail ,05/10/2015,32.94,Purchase Card Statement Summary,161000 - Domestic Goods - Commercial,
Solihull MBC,Children's Services - DSG Schools - Non DMT,Children & Education Services,Amazon UK Retail ,05/10/2015,35.8,Purchase Card Statement Summary,161000 - Domestic Goods - Commercial,
Solihull MBC,Managed Growth,Environmental and Regulatory Services,Amazon UK Retail ,05/10/2015,40.21,Purchase Card Statement Summary,161000 - Domestic Goods - Commercial,
Solihull MBC,Children's Services - DSG Schools - Non DMT,Children & Education Services,Amazon UK Retail ,05/10/2015,41.67,Purchase Card Statement Summary,161000 - Domestic Goods - Commercial,
Solihull MBC,Resources,Central Services to the Public,Amazon UK Retail ,05/10/2015,69.75,Purchase Card Statement Summary,161000 - Domestic Goods - Commercial,
Solihull MBC,Communities & Adult Social Care,Adult Social Care,Amazon UK Retail ,05/10/2015,87.90,Purchase Card Statement Summary,111200 - Catering - Food & Beverages,
Solihull MBC,Children's Services - DSG Schools - Non DMT,Children & Education Services,Amazon UK Retail ,05/10/2015,89.35,Purchase Card Statement Summary,169999 - Domestic Goods - Not Elsewhere Classified,
Solihull MBC,Resources,Central Services to the Public,Amazon UK Retail ,05/10/2015,95.76,Purchase Card Statement Summary,111200 - Catering - Food & Beverages,
Solihull MBC,Resources,Central Services to the Public,Amazon UK Retail ,05/10/2015,286.47,Purchase Card Statement Summary,199999 - Facilities & Management Services - Not Elsewhere Classified,
Solihull MBC,Resources,Central Services to the Public,AO Retail Limited,06/08/2015,83.99,Purchase Card Statement Summary,169999 - Domestic Goods - Not Elsewhere Classified,
Solihull MBC,Children's Services - DSG Schools - Non DMT,Children & Education Services,Ao Retail Limited ,05/10/2015,269.00,Purchase Card Statement Summary,169999 - Domestic Goods - Not Elsewhere Classified,
Solihull MBC,Children's Services - DSG Schools - Non DMT,Children & Education Services,Apple Store R255 ,05/10/2015,30.00,Purchase Card Statement Summary,169999 - Domestic Goods - Not Elsewhere Classified,
Solihull MBC,Children's Services - DSG Schools - Non DMT,Children & Education Services,Apple Store R255 ,05/10/2015,117.60,Purchase Card Statement Summary,111200 - Catering - Food & Beverages,
Solihull MBC,Managed Growth,Environmental and Regulatory Services,Arco Ltd ,05/10/2015,37.91,Purchase Card Statement Summary,141300 - Clothing - Uniforms,
Solihull MBC,Children's Services & Skills,Children & Education Services,Argos Direct ,05/10/2015,-198.93,Purchase Card Statement Summary,169999 - Domestic Goods - Not Elsewhere Classified,
Solihull MBC,Children's Services & Skills,Children & Education Services,Argos Direct ,05/10/2015,-249.00,Purchase Card Statement Summary,169999 - Domestic Goods - Not Elsewhere Classified,
Solihull MBC,Children's Services & Skills,Children & Education Services,Argos Ltd,04/08/2015,14.99,Purchase Card Statement Summary,169999 - Domestic Goods - Not Elsewhere Classified,
Solihull MBC,Children's Services - DSG Schools - Non DMT,Children & Education Services,Argos Ltd ,05/10/2015,9.99,Purchase Card Statement Summary,169999 - Domestic Goods - Not Elsewhere Classified,
Solihull MBC,Children's Services - DSG Schools - Non DMT,Children & Education Services,Argos Ltd ,05/10/2015,19.99,Purchase Card Statement Summary,169999 - Domestic Goods - Not Elsewhere Classified,
Solihull MBC,Children's Services - DSG Schools - Non DMT,Children & Education Services,Argos Ltd ,05/10/2015,24.99,Purchase Card Statement Summary,169999 - Domestic Goods - Not Elsewhere Classified,
Solihull MBC,Children's Services - DSG Schools - Non DMT,Children & Education Services,Argos Ltd ,05/10/2015,29.97,Purchase Card Statement Summary,169999 - Domestic Goods - Not Elsewhere Classified,
Solihull MBC,Communities & Adult Social Care,Adult Social Care,Argos Ltd ,05/10/2015,32.58,Purchase Card Statement Summary,169999 - Domestic Goods - Not Elsewhere Classified,
Solihull MBC,Children's Services - DSG Schools - Non DMT,Children & Education Services,Argos Ltd ,05/10/2015,34.99,Purchase Card Statement Summary,169999 - Domestic Goods - Not Elsewhere Classified,
Solihull MBC,Children's Services - DSG Schools - Non DMT,Children & Education Services,Argos Ltd ,05/10/2015,59.97,Purchase Card Statement Summary,169999 - Domestic Goods - Not Elsewhere Classified,
Solihull MBC,Children's Services - DSG Schools - Non DMT,Children & Education Services,Argos Ltd ,05/10/2015,59.98,Purchase Card Statement Summary,169999 - Domestic Goods - Not Elsewhere Classified,
Solihull MBC,Managed Growth,Other Housing Services,Argos Ltd ,05/10/2015,74.95,Purchase Card Statement Summary,169999 - Domestic Goods - Not Elsewhere Classified,
Solihull MBC,Communities & Adult Social Care,Adult Social Care,Argos Ltd ,05/10/2015,74.96,Purchase Card Statement Summary,169999 - Domestic Goods - Not Elsewhere Classified,
Solihull MBC,Communities & Adult Social Care,Adult Social Care,Argos Ltd ,05/10/2015,97.95,Purchase Card Statement Summary,101400 - Building Construction Materials - General Materials,
Solihull MBC,Children's Services - DSG Schools - Non DMT,Children & Education Services,Argos Ltd ,05/10/2015,104.46,Purchase Card Statement Summary,102500 - Building Construction Materials - Timber,
Solihull MBC,Children's Services & Skills,Children & Education Services,Argos Retail Group ,05/10/2015,7.99,Purchase Card Statement Summary,169999 - Domestic Goods - Not Elsewhere Classified,
Solihull MBC,Children's Services & Skills,Children & Education Services,Argos Retail Group ,05/10/2015,16.74,Purchase Card Statement Summary,169999 - Domestic Goods - Not Elsewhere Classified,
Solihull MBC,Children's Services & Skills,Children & Education Services,Argos Retail Group ,05/10/2015,19.99,Purchase Card Statement Summary,169999 - Domestic Goods - Not Elsewhere Classified,
Solihull MBC,Children's Services & Skills,Children & Education Services,Argos Retail Group ,05/10/2015,24.99,Purchase Card Statement Summary,169999 - Domestic Goods - Not Elsewhere Classified,
Solihull MBC,Children's Services & Skills,Children & Education Services,Argos Retail Group ,05/10/2015,24.99,Purchase Card Statement Summary,169999 - Domestic Goods - Not Elsewhere Classified,
Solihull MBC,Children's Services - DSG Schools - Non DMT,Children & Education Services,Argos Retail Group ,05/10/2015,25.48,Purchase Card Statement Summary,169999 - Domestic Goods - Not Elsewhere Classified,
Solihull MBC,Children's Services & Skills,Children & Education Services,Argos Retail Group ,05/10/2015,37.93,Purchase Card Statement Summary,169999 - Domestic Goods - Not Elsewhere Classified,
Solihull MBC,Children's Services & Skills,Children & Education Services,Argos Retail Group ,05/10/2015,38.97,Purchase Card Statement Summary,169999 - Domestic Goods - Not Elsewhere Classified,
Solihull MBC,Children's Services & Skills,Children & Education Services,Argos Retail Group ,05/10/2015,53.90,Purchase Card Statement Summary,169999 - Domestic Goods - Not Elsewhere Classified,
Solihull MBC,Children's Services & Skills,Children & Education Services,Argos Retail Group ,05/10/2015,57.58,Purchase Card Statement Summary,169999 - Domestic Goods - Not Elsewhere Classified,
Solihull MBC,Children's Services & Skills,Children & Education Services,Argos Retail Group ,05/10/2015,62.76,Purchase Card Statement Summary,169999 - Domestic Goods - Not Elsewhere Classified,
Solihull MBC,Children's Services & Skills,Children & Education Services,Argos Retail Group ,05/10/2015,82.7,Purchase Card Statement Summary,169999 - Domestic Goods - Not Elsewhere Classified,
Solihull MBC,Communities & Adult Social Care,Adult Social Care,Argos Retail Group ,05/10/2015,88.91,Purchase Card Statement Summary,111200 - Catering - Food & Beverages,
Solihull MBC,Children's Services & Skills,Children & Education Services,Argos Retail Group ,05/10/2015,90.92,Purchase Card Statement Summary,111200 - Catering - Food & Beverages,
Solihull MBC,Children's Services & Skills,Children & Education Services,Argos Retail Group ,05/10/2015,138.94,Purchase Card Statement Summary,261400 - Human Resources - Temporary & Agency Staff,
Solihull MBC,Children's Services & Skills,Children & Education Services,Argos Retail Group ,05/10/2015,152.29,Purchase Card Statement Summary,261000 - Human Resources - Accommodation,
Solihull MBC,Children's Services & Skills,Children & Education Services,Argos Retail Group ,05/10/2015,158.92,Purchase Card Statement Summary,151000 - Consultancy - Business,
Solihull MBC,Children's Services & Skills,Children & Education Services,Argos Retail Group ,05/10/2015,198.93,Purchase Card Statement Summary,111200 - Catering - Food & Beverages,
Solihull MBC,Children's Services & Skills,Children & Education Services,Argos Retail Group ,05/10/2015,208.91,Purchase Card Statement Summary,101100 - Building Construction Materials - Electrical,
Solihull MBC,Children's Services & Skills,Children & Education Services,Argos Retail Group ,05/10/2015,212.96,Purchase Card Statement Summary,111100 - Catering - Equipment & Utensils,
Solihull MBC,Children's Services & Skills,Children & Education Services,Argos Retail Group ,05/10/2015,268.92,Purchase Card Statement Summary,101400 - Building Construction Materials - General Materials,
Solihull MBC,Children's Services & Skills,Children & Education Services,Argos Retail Group ,05/10/2015,321.15,Purchase Card Statement Summary,102500 - Building Construction Materials - Timber,
Solihull MBC,Children's Services & Skills,Children & Education Services,Asda 4387,20/08/2015,80.95,Materials,111200 - Catering - Food & Beverages,
Solihull MBC,Communities & Adult Social Care,Adult Social Care,Asda Home Shopping,04/08/2015,22.48,Purchase Card Statement Summary,111200 - Catering - Food & Beverages,
Solihull MBC,Communities & Adult Social Care,Adult Social Care,Asda Home Shopping,01/09/2015,31.65,Purchase Card Statement Summary,111200 - Catering - Food & Beverages,
Solihull MBC,Communities & Adult Social Care,Adult Social Care,Asda Home Shopping,01/09/2015,103.26,Purchase Card Statement Summary,111200 - Catering - Food & Beverages,
Solihull MBC,Communities & Adult Social Care,Adult Social Care,Asda Home Shopping,04/08/2015,116.70,Purchase Card Statement Summary,111200 - Catering - Food & Beverages,
Solihull MBC,Communities & Adult Social Care,Adult Social Care,Asda Home Shopping,18/08/2015,123.90,Purchase Card Statement Summary,111200 - Catering - Food & Beverages,
Solihull MBC,Communities & Adult Social Care,Adult Social Care,Asda Home Shopping ,05/10/2015,93.63,Purchase Card Statement Summary,111200 - Catering - Food & Beverages,
Solihull MBC,Children's Services - DSG Schools - Non DMT,Children & Education Services,Asda Stores 4602 ,05/10/2015,13.17,Purchase Card Statement Summary,111200 - Catering - Food & Beverages,
Solihull MBC,Managed Growth,Cultural & Related Services,Asda Stores 5881,26/08/2015,5.00,Furniture & Equipment,111200 - Catering - Food & Beverages,
Solihull MBC,Children's Services & Skills,Children & Education Services,Asda Stores 5881,27/08/2015,20.00,Clients Expenses,111200 - Catering - Food & Beverages,
Solihull MBC,Children's Services & Skills,Children & Education Services,Asda Stores 5881,28/08/2015,66,Purchase Card Statement Summary,111200 - Catering - Food & Beverages,
Solihull MBC,Children's Services & Skills,Children & Education Services,Asda Stores 5881,01/09/2015,86.5,Clients Expenses,111200 - Catering - Food & Beverages,
Solihull MBC,Managed Growth - HRA,Housing Revenue Account,Asda Stores 5881 ,05/10/2015,1.5,General Debtors,111200 - Catering - Food & Beverages,
Solihull MBC,Communities & Adult Social Care,Adult Social Care,Asda Stores 5881 ,05/10/2015,6.70,Purchase Card Statement Summary,111200 - Catering - Food & Beverages,
Solihull MBC,Children's Services - DSG Schools - Non DMT,Children & Education Services,Asda Stores 5881 ,05/10/2015,7.12,Purchase Card Statement Summary,111200 - Catering - Food & Beverages,
Solihull MBC,Children's Services & Skills,Children & Education Services,Asda Stores 5881 ,05/10/2015,7.91,Purchase Card Statement Summary,111200 - Catering - Food & Beverages,
Solihull MBC,Communities & Adult Social Care,Adult Social Care,Asda Stores 5881 ,05/10/2015,8.00,Purchase Card Statement Summary,111200 - Catering - Food & Beverages,
Solihull MBC,Children's Services - DSG Schools - Non DMT,Children & Education Services,Asda Stores 5881 ,05/10/2015,8.33,Purchase Card Statement Summary,111200 - Catering - Food & Beverages,
Solihull MBC,Children's Services & Skills,Children & Education Services,Asda Stores 5881 ,05/10/2015,12.00,Purchase Card Statement Summary,111200 - Catering - Food & Beverages,
Solihull MBC,Communities & Adult Social Care,Adult Social Care,Asda Stores 5881 ,05/10/2015,12.40,Purchase Card Statement Summary,111200 - Catering - Food & Beverages,
Solihull MBC,Managed Growth - HRA,Housing Revenue Account,Asda Stores 5881 ,05/10/2015,18.00,General Debtors,111200 - Catering - Food & Beverages,
Solihull MBC,Managed Growth - HRA,Housing Revenue Account,Asda Stores 5881 ,05/10/2015,19.8,General Debtors,111200 - Catering - Food & Beverages,
Solihull MBC,Communities & Adult Social Care,Adult Social Care,Asda Stores 5881 ,05/10/2015,21.11,Purchase Card Statement Summary,111200 - Catering - Food & Beverages,
Solihull MBC,Children's Services & Skills,Children & Education Services,Asda Stores 5881 ,05/10/2015,37.00,Purchase Card Statement Summary,111200 - Catering - Food & Beverages,
Solihull MBC,Children's Services & Skills,Children & Education Services,Asda Stores 5881 ,05/10/2015,47.69,Purchase Card Statement Summary,111200 - Catering - Food & Beverages,
Solihull MBC,Children's Services - DSG Schools - Non DMT,Children & Education Services,Asda Stores 5881 ,05/10/2015,72.26,Purchase Card Statement Summary,111200 - Catering - Food & Beverages,
Solihull MBC,Children's Services & Skills,Children & Education Services,Asda Stores 5881 ,05/10/2015,184.75,Purchase Card Statement Summary,211210 - Furniture & Soft Furnishings - Soft Furnishings,
Solihull MBC,Children's Services - DSG Schools - Non DMT,Children & Education Services,Asda Superstore ,05/10/2015,7.40,Purchase Card Statement Summary,111200 - Catering - Food & Beverages,
Solihull MBC,Children's Services - DSG Schools - Non DMT,Children & Education Services,Asda Superstore ,05/10/2015,9.50,Purchase Card Statement Summary,111200 - Catering - Food & Beverages,
Solihull MBC,Children's Services - DSG Schools - Non DMT,Children & Education Services,Asda Superstore ,05/10/2015,13.56,Purchase Card Statement Summary,111200 - Catering - Food & Beverages,
Solihull MBC,Children's Services - DSG Schools - Non DMT,Children & Education Services,Asda� Stores 5880 ,05/10/2015,4.95,Purchase Card Statement Summary,111200 - Catering - Food & Beverages,
Solihull MBC,Children's Services - DSG Schools - Non DMT,Children & Education Services,Asda� Stores 5880 ,05/10/2015,5.40,Purchase Card Statement Summary,111200 - Catering - Food & Beverages,
Solihull MBC,Children's Services - DSG Schools - Non DMT,Children & Education Services,Asda� Stores 5880 ,05/10/2015,7.82,Purchase Card Statement Summary,111200 - Catering - Food & Beverages,
Solihull MBC,Children's Services - DSG Schools - Non DMT,Children & Education Services,Asda� Stores 5880 ,05/10/2015,14.00,Purchase Card Statement Summary,111200 - Catering - Food & Beverages,
Solihull MBC,Communities & Adult Social Care,Adult Social Care,Asda� Stores 5880 ,05/10/2015,24.53,Purchase Card Statement Summary,111200 - Catering - Food & Beverages,
Solihull MBC,Children's Services & Skills,Children & Education Services,Asda� Stores 5880 ,05/10/2015,32.99,Purchase Card Statement Summary,111200 - Catering - Food & Beverages,
Solihull MBC,Communities & Adult Social Care,Adult Social Care,Asda� Stores 5880 ,05/10/2015,79.20,Purchase Card Statement Summary,111200 - Catering - Food & Beverages,
Solihull MBC,Children's Services - DSG Schools - Non DMT,Children & Education Services,Asda� Stores 5880 ,05/10/2015,100.56,Purchase Card Statement Summary,111200 - Catering - Food & Beverages,
Solihull MBC,Children's Services - DSG Schools - Non DMT,Children & Education Services,Asda� Stores 5880 ,05/10/2015,122.38,Purchase Card Statement Summary,111200 - Catering - Food & Beverages,
Solihull MBC,Children's Services & Skills,Children & Education Services,Aspire Active Camp ,05/10/2015,85.00,Purchase Card Statement Summary,169999 - Domestic Goods - Not Elsewhere Classified,
Solihull MBC,Communities & Adult Social Care,Adult Social Care,AUK*Agora Business Pub,14/08/2015,54.46,Purchase Card Statement Summary,161000 - Domestic Goods - Commercial,
Solihull MBC,Children's Services - DSG Schools - Non DMT,Children & Education Services,AW Solutions ,05/10/2015,29.95,Purchase Card Statement Summary,271430 - Information Communication Technology - Software - Commercial Off-The-Shelf,
Solihull MBC,Children's Services & Skills,Children & Education Services,B & Q,03/08/2015,-8.00,Materials,102500 - Building Construction Materials - Timber,
Solihull MBC,Children's Services & Skills,Children & Education Services,B & Q,03/08/2015,28.85,Materials,102500 - Building Construction Materials - Timber,
Solihull MBC,Children's Services - DSG Schools - Non DMT,Children & Education Services,B & Q ,05/10/2015,-16.25,Purchase Card Statement Summary,102500 - Building Construction Materials - Timber,
Solihull MBC,Managed Growth,Other Housing Services,B & Q ,05/10/2015,4.5,Purchase Card Statement Summary,102500 - Building Construction Materials - Timber,
Solihull MBC,Children's Services - DSG Schools - Non DMT,Children & Education Services,B & Q ,05/10/2015,7.00,Purchase Card Statement Summary,102500 - Building Construction Materials - Timber,
Solihull MBC,Children's Services - DSG Schools - Non DMT,Children & Education Services,B & Q ,05/10/2015,7.87,Purchase Card Statement Summary,102500 - Building Construction Materials - Timber,
Solihull MBC,Children's Services - DSG Schools - Non DMT,Children & Education Services,B & Q ,05/10/2015,8.00,Purchase Card Statement Summary,102500 - Building Construction Materials - Timber,
Solihull MBC,Managed Growth,Other Housing Services,B & Q ,05/10/2015,8.5,Purchase Card Statement Summary,102500 - Building Construction Materials - Timber,
Solihull MBC,Resources,Central Services to the Public,B & Q ,05/10/2015,10.22,Purchase Card Statement Summary,102500 - Building Construction Materials - Timber,
Solihull MBC,Children's Services - DSG Schools - Non DMT,Children & Education Services,B & Q ,05/10/2015,13.70,Purchase Card Statement Summary,102500 - Building Construction Materials - Timber,
Solihull MBC,Children's Services - DSG Schools - Non DMT,Children & Education Services,B & Q ,05/10/2015,18.47,Purchase Card Statement Summary,102500 - Building Construction Materials - Timber,
Solihull MBC,Children's Services - DSG Schools - Non DMT,Children & Education Services,B & Q ,05/10/2015,23.47,Purchase Card Statement Summary,102500 - Building Construction Materials - Timber,
Solihull MBC,Children's Services - DSG Schools - Non DMT,Children & Education Services,B & Q ,05/10/2015,25.19,Purchase Card Statement Summary,102500 - Building Construction Materials - Timber,
Solihull MBC,Children's Services - DSG Schools - Non DMT,Children & Education Services,B & Q ,05/10/2015,31.99,Purchase Card Statement Summary,102500 - Building Construction Materials - Timber,
Solihull MBC,Children's Services - DSG Schools - Non DMT,Children & Education Services,B & Q ,05/10/2015,36.41,Purchase Card Statement Summary,102500 - Building Construction Materials - Timber,
Solihull MBC,Children's Services - DSG Schools - Non DMT,Children & Education Services,B & Q ,05/10/2015,38.00,Purchase Card Statement Summary,102500 - Building Construction Materials - Timber,
Solihull MBC,Children's Services - DSG Schools - Non DMT,Children & Education Services,B & Q ,05/10/2015,42.99,Purchase Card Statement Summary,102500 - Building Construction Materials - Timber,
Solihull MBC,Children's Services - DSG Schools - Non DMT,Children & Education Services,B & Q ,05/10/2015,48.32,Purchase Card Statement Summary,102500 - Building Construction Materials - Timber,
Solihull MBC,Children's Services - DSG Schools - Non DMT,Children & Education Services,B & Q ,05/10/2015,59.9,Purchase Card Statement Summary,102500 - Building Construction Materials - Timber,
Solihull MBC,Children's Services - DSG Schools - Non DMT,Children & Education Services,B & Q ,05/10/2015,65,Purchase Card Statement Summary,102500 - Building Construction Materials - Timber,
Solihull MBC,Children's Services - DSG Schools - Non DMT,Children & Education Services,B & Q ,05/10/2015,66.23,Purchase Card Statement Summary,102500 - Building Construction Materials - Timber,
Solihull MBC,Children's Services - DSG Schools - Non DMT,Children & Education Services,B & Q ,05/10/2015,67.79,Purchase Card Statement Summary,102500 - Building Construction Materials - Timber,
Solihull MBC,Children's Services - DSG Schools - Non DMT,Children & Education Services,B & Q ,05/10/2015,67.94,Purchase Card Statement Summary,102500 - Building Construction Materials - Timber,
Solihull MBC,Managed Growth,Other Housing Services,B & Q ,05/10/2015,86.24,Purchase Card Statement Summary,111200 - Catering - Food & Beverages,
Solihull MBC,Children's Services - DSG Schools - Non DMT,Children & Education Services,B & Q ,05/10/2015,98.11,Purchase Card Statement Summary,169999 - Domestic Goods - Not Elsewhere Classified,
Solihull MBC,Children's Services - DSG Schools - Non DMT,Children & Education Services,B&M Retail ,05/10/2015,41.34,Purchase Card Statement Summary,169999 - Domestic Goods - Not Elsewhere Classified,
Solihull MBC,Children's Services - DSG Schools - Non DMT,Children & Education Services,B&M Retail Ltd ,05/10/2015,11.85,Purchase Card Statement Summary,169999 - Domestic Goods - Not Elsewhere Classified,
Solihull MBC,Public Health & Commissioning ,Adult Social Care,BBS Coffee & Muiffins,01/09/2015,238.4,Purchase Card Statement Summary,261600 - Human Resources - Travel & Subsistence,
Solihull MBC,Communities & Adult Social Care,Adult Social Care,Birmingham Hippodrome ,05/10/2015,47.26,Purchase Card Statement Summary,291300 - Arts & Leisure Services - Performing Arts,
Solihull MBC,Communities & Adult Social Care,Adult Social Care,Birmingham Hippodrome ,05/10/2015,57.70,Purchase Card Statement Summary,291300 - Arts & Leisure Services - Performing Arts,
Solihull MBC,Children's Services - DSG Schools - Non DMT,Children & Education Services,Boots 6580 ,05/10/2015,4.00,Purchase Card Statement Summary,111200 - Catering - Food & Beverages,
Solihull MBC,Children's Services - DSG Schools - Non DMT,Children & Education Services,Boots 6580 ,05/10/2015,65.94,Purchase Card Statement Summary,311200 - Healthcare - Drugs,
Solihull MBC,Children's Services - DSG Schools - Non DMT,Children & Education Services,Boots The Chemist ,05/10/2015,17.00,Purchase Card Statement Summary,311200 - Healthcare - Drugs,
Solihull MBC,Children's Services - DSG Schools - Non DMT,Children & Education Services,Boots.com ,05/10/2015,14.00,Purchase Card Statement Summary,311200 - Healthcare - Drugs,
Solihull MBC,Children's Services - DSG Schools - Non DMT,Children & Education Services,BT Bill Payment 2 ,05/10/2015,61.13,Purchase Card Statement Summary,271699 - Information Communications Technology - Telecommunications,
Solihull MBC,Communities & Adult Social Care,Adult Social Care,Butlins Holidays ,05/10/2015,244.00,Purchase Card Statement Summary,191100 - Facilities & Management Services - Design & Photography,
Solihull MBC,Managed Growth,Highways & Transport Services,C Curtiss & Sons L,05/08/2015,28.00,Purchase Card Statement Summary,102500 - Building Construction Materials - Timber,
Solihull MBC,Managed Growth,Cultural & Related Services,C Curtiss & Sons L ,05/10/2015,10.68,Purchase Card Statement Summary,102500 - Building Construction Materials - Timber,
Solihull MBC,Children's Services - DSG Schools - Non DMT,Children & Education Services,Card Factory ,05/10/2015,5.00,Purchase Card Statement Summary,161000 - Domestic Goods - Commercial,
Solihull MBC,Children's Services - DSG Schools - Non DMT,Children & Education Services,Central Eng Coop ,05/10/2015,2.15,Purchase Card Statement Summary,169999 - Domestic Goods - Not Elsewhere Classified,
Solihull MBC,Children's Services - DSG Schools - Non DMT,Children & Education Services,Central Eng Coop ,05/10/2015,3.33,Purchase Card Statement Summary,169999 - Domestic Goods - Not Elsewhere Classified,
Solihull MBC,Children's Services - DSG Schools - Non DMT,Children & Education Services,Central Eng Coop ,05/10/2015,8.69,Purchase Card Statement Summary,169999 - Domestic Goods - Not Elsewhere Classified,
Solihull MBC,Children's Services - DSG Schools - Non DMT,Children & Education Services,Central Eng Coop ,05/10/2015,10.81,Purchase Card Statement Summary,169999 - Domestic Goods - Not Elsewhere Classified,
Solihull MBC,Children's Services - DSG Schools - Non DMT,Children & Education Services,Cfo-Op Late Shop ,05/10/2015,25.08,Purchase Card Statement Summary,111200 - Catering - Food & Beverages,
Solihull MBC,Managed Growth,Highways & Transport Services,Charge.Prezi.Com,15/08/2015,105.07,IT Equipment & Software,271200 - Information Communications Technology - Hardware,
Solihull MBC,Resources,Central Services to the Public,Charge.Prezi.Com,31/08/2015,106.58,IT Equipment & Software,271200 - Information Communications Technology - Hardware,
Solihull MBC,Managed Growth,Cultural & Related Services,Choices Galore Cash &,25/08/2015,6.59,Furniture & Equipment,169999 - Domestic Goods - Not Elsewhere Classified,
Solihull MBC,Managed Growth,Cultural & Related Services,Choices Galore Cash &,19/08/2015,28.19,Furniture & Equipment,169999 - Domestic Goods - Not Elsewhere Classified,
Solihull MBC,Children's Services - DSG Schools - Non DMT,Children & Education Services,Clarks Factory Shop ,05/10/2015,36.99,Purchase Card Statement Summary,141000 - Clothing - Children & Adults,
Solihull MBC,Resources,Central Services to the Public,Clickatell Ltd ,05/10/2015,16.32,Purchase Card Statement Summary,271699 - Information Communications Technology - Telecommunications,
Solihull MBC,Resources,Central Services to the Public,Comms Express Ltd ,05/10/2015,109.79,Purchase Card Statement Summary,111200 - Catering - Food & Beverages,
Solihull MBC,Resources,Central Services to the Public,Comms Express Ltd ,05/10/2015,939.60,Purchase Card Statement Summary,211210 - Furniture & Soft Furnishings - Soft Furnishings,
Solihull MBC,Managed Growth - HRA,Housing Revenue Account,Contour Showers ,05/10/2015,270.00,General Debtors,169999 - Domestic Goods - Not Elsewhere Classified,
Solihull MBC,Children's Services - DSG Schools - Non DMT,Children & Education Services,Co-Op Late Shop ,05/10/2015,24.46,Purchase Card Statement Summary,111200 - Catering - Food & Beverages,
Solihull MBC,Managed Growth - HRA,Housing Revenue Account,Costco On-Line ,05/10/2015,52.80,General Debtors,169999 - Domestic Goods - Not Elsewhere Classified,
Solihull MBC,Children's Services - DSG Schools - Non DMT,Children & Education Services,Costco.co.uk ,05/10/2015,-319.99,Purchase Card Statement Summary,169999 - Domestic Goods - Not Elsewhere Classified,
Solihull MBC,Children's Services - DSG Schools - Non DMT,Children & Education Services,County Waste ,05/10/2015,228.66,Purchase Card Statement Summary,151000 - Consultancy - Business,
Solihull MBC,Business Change,Central Services to the Public,Cross Country,24/08/2015,63.20,Purchase Card Statement Summary,261600 - Human Resources - Travel & Subsistence,
Solihull MBC,Managed Growth,Highways & Transport Services,Currys,04/08/2015,8.32,IT Equipment & Software,169999 - Domestic Goods - Not Elsewhere Classified,
Solihull MBC,Managed Growth,Highways & Transport Services,Currys,06/08/2015,34.16,Materials,169999 - Domestic Goods - Not Elsewhere Classified,
Solihull MBC,Communities & Adult Social Care,Adult Social Care,Currys ,05/10/2015,199.99,Purchase Card Statement Summary,111200 - Catering - Food & Beverages,
Solihull MBC,Resources,Central Services to the Public,Currys ,05/10/2015,368.99,Purchase Card Statement Summary,201711 - Financial Services - Grants - Non-charitable,
Solihull MBC,Children's Services - DSG Schools - Non DMT,Children & Education Services,Darlaston Builders ,05/10/2015,9.74,Purchase Card Statement Summary,102500 - Building Construction Materials - Timber,
Solihull MBC,Children's Services - DSG Schools - Non DMT,Children & Education Services,Darlaston Builders ,05/10/2015,11.96,Purchase Card Statement Summary,102500 - Building Construction Materials - Timber,
Solihull MBC,Children's Services - DSG Schools - Non DMT,Children & Education Services,Darlaston Builders ,05/10/2015,46.84,Purchase Card Statement Summary,102500 - Building Construction Materials - Timber,
Solihull MBC,Managed Growth,Environmental and Regulatory Services,Disclosure Scot ,05/10/2015,25.00,Purchase Card Statement Summary,209999 - Financial Services - Not Elsewhere Classified,
Solihull MBC,Children's Services - DSG Schools - Non DMT,Children & Education Services,Dobbies Garden Ctr ,05/10/2015,52.99,Purchase Card Statement Summary,249999 - Horticultural - Not Elsewhere Classified,
Solihull MBC,Children's Services & Skills,Children & Education Services,Dominos Pizza ,05/10/2015,95.24,Purchase Card Statement Summary,111200 - Catering - Food & Beverages,
Solihull MBC,Managed Growth,Cultural & Related Services,Dovetail/Haymarket Pbl,17/08/2015,44,Materials,349999 - Stationery - Not Elsewhere Classified,
Solihull MBC,Children's Services - DSG Schools - Non DMT,Children & Education Services,Dulux Decorator Centre ,05/10/2015,89.57,Purchase Card Statement Summary,161000 - Domestic Goods - Commercial,
Solihull MBC,Children's Services - DSG Schools - Non DMT,Children & Education Services,Dunelm (Soft Furnishin ,05/10/2015,3.99,Purchase Card Statement Summary,211210 - Furniture & Soft Furnishings - Soft Furnishings,
Solihull MBC,Children's Services - DSG Schools - Non DMT,Children & Education Services,Dunelm (Soft Furnishin ,05/10/2015,9.97,Purchase Card Statement Summary,211210 - Furniture & Soft Furnishings - Soft Furnishings,
Solihull MBC,Children's Services - DSG Schools - Non DMT,Children & Education Services,Dunelm Ltd ,05/10/2015,19.92,Purchase Card Statement Summary,211210 - Furniture & Soft Furnishings - Soft Furnishings,
Solihull MBC,Children's Services - DSG Schools - Non DMT,Children & Education Services,Dunelm Ltd ,05/10/2015,22.91,Purchase Card Statement Summary,211210 - Furniture & Soft Furnishings - Soft Furnishings,
Solihull MBC,Children's Services - DSG Schools - Non DMT,Children & Education Services,E H Smith Bldrs Merchant ,05/10/2015,4.50,Purchase Card Statement Summary,102500 - Building Construction Materials - Timber,
Solihull MBC,Children's Services - DSG Schools - Non DMT,Children & Education Services,E H Smith Bldrs Merchant ,05/10/2015,5.12,Purchase Card Statement Summary,102500 - Building Construction Materials - Timber,
Solihull MBC,Children's Services & Skills,Children & Education Services,E.On Energy Solutions ,05/10/2015,71.54,Purchase Card Statement Summary,370000 - Utilities,
Solihull MBC,Children's Services - DSG Schools - Non DMT,Children & Education Services,Earlswood Hungry Horse ,05/10/2015,14.86,Purchase Card Statement Summary,169999 - Domestic Goods - Not Elsewhere Classified,
Solihull MBC,Children's Services - DSG Schools - Non DMT,Children & Education Services,Ee & T-Mobile ,05/10/2015,173.76,Purchase Card Statement Summary,301200 - Mail Services - Postage,
Solihull MBC,Children's Services - DSG Schools - Non DMT,Children & Education Services,Elc-Internet ,05/10/2015,32,Purchase Card Statement Summary,169999 - Domestic Goods - Not Elsewhere Classified,
Solihull MBC,Children's Services - DSG Schools - Non DMT,Children & Education Services,Electric Centre Ltd ,05/10/2015,2.44,Purchase Card Statement Summary,169999 - Domestic Goods - Not Elsewhere Classified,
Solihull MBC,Managed Growth,Other Housing Services,Electric Centre Ltd ,05/10/2015,6.52,Purchase Card Statement Summary,169999 - Domestic Goods - Not Elsewhere Classified,
Solihull MBC,Children's Services - DSG Schools - Non DMT,Children & Education Services,Electric Centre Ltd ,05/10/2015,6.6,Purchase Card Statement Summary,169999 - Domestic Goods - Not Elsewhere Classified,
Solihull MBC,Managed Growth,Other Housing Services,Electric Centre Ltd ,05/10/2015,13.02,Purchase Card Statement Summary,169999 - Domestic Goods - Not Elsewhere Classified,
Solihull MBC,Children's Services - DSG Schools - Non DMT,Children & Education Services,Esso Widney Sstn ,05/10/2015,1.10,Purchase Card Statement Summary,381100 - Vehicle Management - Fuel,
Solihull MBC,Managed Growth,Environmental and Regulatory Services,Experian ,05/10/2015,72.00,Purchase Card Statement Summary,151900 - Consultancy - Management,
Solihull MBC,Children's Services - DSG Schools - Non DMT,Children & Education Services,Fancy Silk Store ,05/10/2015,5.99,Purchase Card Statement Summary,211210 - Furniture & Soft Furnishings - Soft Furnishings,
Solihull MBC,Communities & Adult Social Care,Adult Social Care,Farmfoods- Castle ,05/10/2015,9.89,Purchase Card Statement Summary,111200 - Catering - Food & Beverages,
Solihull MBC,Communities & Adult Social Care,Adult Social Care,Farmfoods- Castle ,05/10/2015,32.32,Purchase Card Statement Summary,111200 - Catering - Food & Beverages,
Solihull MBC,Communities & Adult Social Care,Adult Social Care,Farmfoods- Castle ,05/10/2015,63.63,Purchase Card Statement Summary,111200 - Catering - Food & Beverages,
Solihull MBC,Communities & Adult Social Care,Adult Social Care,Farmfoods- Castle ,05/10/2015,75.12,Purchase Card Statement Summary,111200 - Catering - Food & Beverages,
Solihull MBC,Communities & Adult Social Care,Adult Social Care,Farmfoods- Castle ,05/10/2015,110.89,Purchase Card Statement Summary,301200 - Mail Services - Postage,
Solihull MBC,Managed Growth,Planning & Development Services,Fasthosts Internet,19/08/2015,6.99,Purchase Card Statement Summary,279999 - Information Communications Technology - Not Elsewhere Classified,
Solihull MBC,Managed Growth,Planning & Development Services,Fat Sandwich,20/08/2015,18.42,Purchase Card Statement Summary,261600 - Human Resources - Travel & Subsistence,
Solihull MBC,Business Change,Adult Social Care,Finance Melbury House,21/08/2015,6.00,Materials,171011 - Education - School Services,
Solihull MBC,Communities & Adult Social Care,Adult Social Care,Finance Melbury House ,05/10/2015,6.00,Purchase Card Statement Summary,171011 - Education - School Services,
Solihull MBC,Managed Growth,Cultural & Related Services,Findel Ed Ltd,05/08/2015,35.25,Furniture & Equipment,161000 - Domestic Goods - Commercial,
Solihull MBC,Children's Services & Skills,Children & Education Services,Footie Bugs Ltd ,05/10/2015,26.00,Purchase Card Statement Summary,291400 - Arts & Leisure Services - Sport & Fitness,
Solihull MBC,Managed Growth,Highways & Transport Services,Friday Lane Nurseries,07/08/2015,30.30,Purchase Card Statement Summary,249999 - Horticultural - Not Elsewhere Classified,
Solihull MBC,Managed Growth,Cultural & Related Services,Friday Lane Nurseries ,05/10/2015,39.36,Purchase Card Statement Summary,249999 - Horticultural - Not Elsewhere Classified,
Solihull MBC,Communities & Adult Social Care,Adult Social Care,Gavellers Cafe ,05/10/2015,8.5,Purchase Card Statement Summary,261600 - Human Resources - Travel & Subsistence,
Solihull MBC,Children's Services - DSG Schools - Non DMT,Children & Education Services,Geeves Of Castle Bromw ,05/10/2015,52.50,Purchase Card Statement Summary,131311 - Cleaning & Janitorial - Laundry Service,
Solihull MBC,Resources,Central Services to the Public,Giftvouchershop.co.uk ,05/10/2015,701.25,Purchase Card Statement Summary,102500 - Building Construction Materials - Timber,
Solihull MBC,Managed Growth,Cultural & Related Services,GN&M Ltd,06/08/2015,36.79,Materials,349999 - Stationery - Not Elsewhere Classified,
Solihull MBC,Managed Growth,Cultural & Related Services,GN&M Ltd,13/08/2015,43.29,Materials,349999 - Stationery - Not Elsewhere Classified,
Solihull MBC,Communities & Adult Social Care,Adult Social Care,Grand Harbour Hotel Dc ,05/10/2015,152.27,Purchase Card Statement Summary,249999 - Horticultural - Not Elsewhere Classified,
Solihull MBC,Communities & Adult Social Care,Adult Social Care,Grand Harbour Hotel Dc ,05/10/2015,152.27,Purchase Card Statement Summary,261000 - Human Resources - Accommodation,
Solihull MBC,Resources,Central Services to the Public,Greggs S2117,05/08/2015,2.00,Training,111200 - Catering - Food & Beverages,
Solihull MBC,Resources,Central Services to the Public,Greggs S2117,03/08/2015,2.00,Training,111200 - Catering - Food & Beverages,
Solihull MBC,Resources,Central Services to the Public,Greggs S2117,06/08/2015,2,Training,111200 - Catering - Food & Beverages,
Solihull MBC,Children's Services & Skills,Children & Education Services,GRO HM Passport Office ,05/10/2015,23.40,Purchase Card Statement Summary,209999 - Financial Services - Not Elsewhere Classified,
Solihull MBC,Children's Services & Skills,Children & Education Services,GRO HM Passport Office ,05/10/2015,27.75,Purchase Card Statement Summary,209999 - Financial Services - Not Elsewhere Classified,
Solihull MBC,Communities & Adult Social Care,Adult Social Care,Hare & Hounds ,05/10/2015,10.00,Purchase Card Statement Summary,261600 - Human Resources - Travel & Subsistence,
Solihull MBC,Communities & Adult Social Care,Adult Social Care,Hare & Hounds ,05/10/2015,10.00,Purchase Card Statement Summary,261600 - Human Resources - Travel & Subsistence,
Solihull MBC,Communities & Adult Social Care,Adult Social Care,Hare & Hounds ,05/10/2015,11.70,Purchase Card Statement Summary,261600 - Human Resources - Travel & Subsistence,
Solihull MBC,Communities & Adult Social Care,Adult Social Care,Haven Holidays ,05/10/2015,144.18,Purchase Card Statement Summary,111200 - Catering - Food & Beverages,
Solihull MBC,Children's Services - DSG Schools - Non DMT,Children & Education Services,Hays Personnel ,05/10/2015,86.4,Purchase Card Statement Summary,102500 - Building Construction Materials - Timber,
Solihull MBC,Children's Services - DSG Schools - Non DMT,Children & Education Services,Hays Personnel ,05/10/2015,138,Purchase Card Statement Summary,261000 - Human Resources - Accommodation,
Solihull MBC,Children's Services - DSG Schools - Non DMT,Children & Education Services,Hays Personnel ,05/10/2015,259.2,Purchase Card Statement Summary,161000 - Domestic Goods - Commercial,
Solihull MBC,Children's Services - DSG Schools - Non DMT,Children & Education Services,Hays Personnel ,05/10/2015,259.2,Purchase Card Statement Summary,261400 - Human Resources - Temporary & Agency Staff,
Solihull MBC,Children's Services - DSG Schools - Non DMT,Children & Education Services,Hays Personnel ,05/10/2015,534.00,Purchase Card Statement Summary,211100 - Furniture & Soft Furnishings - Domestic Furniture,
Solihull MBC,Communities & Adult Social Care,Adult Social Care,Hazelfield Garden ,05/10/2015,31.95,Purchase Card Statement Summary,249999 - Horticultural - Not Elsewhere Classified,
Solihull MBC,Children's Services - DSG Schools - Non DMT,Children & Education Services,Hewlett-Packard Ltd. ,05/10/2015,56.00,Purchase Card Statement Summary,271200 - Information Communications Technology - Hardware,
Solihull MBC,Business Change,Central Services to the Public,High Street Vouche ,05/10/2015,178.50,Purchase Card Statement Summary,271699 - Information Communications Technology - Telecommunications,
Solihull MBC,Resources,Central Services to the Public,High Street Vouche ,05/10/2015,1509.50,Purchase Card Statement Summary,361300 - Public Transport - Passenger Transport,
Solihull MBC,Resources,Central Services to the Public,High Street Vouche ,05/10/2015,2509.50,Purchase Card Statement Summary,161000 - Domestic Goods - Commercial,
Solihull MBC,Communities & Adult Social Care,Adult Social Care,HMCourts-Service.G,20/08/2015,20.00,General Office Expenses,209999 - Financial Services - Not Elsewhere Classified,
Solihull MBC,Resources,Central Services to the Public,HMCourts-Service.G,11/08/2015,42.00,Purchase Card Statement Summary,209999 - Financial Services - Not Elsewhere Classified,
Solihull MBC,Resources,Central Services to the Public,HMCourts-Service.G,11/08/2015,813,Purchase Card Statement Summary,209999 - Financial Services - Not Elsewhere Classified,
Solihull MBC,Children's Services & Skills,Children & Education Services,HMCourts-Service.G ,05/10/2015,30.00,Purchase Card Statement Summary,209999 - Financial Services - Not Elsewhere Classified,
Solihull MBC,Children's Services - DSG Schools - Non DMT,Children & Education Services,Hobby Craft Ltd ,05/10/2015,15.50,Purchase Card Statement Summary,171110 - Education - Arts & Crafts,
Solihull MBC,Governance  ,Corporate & Democratic Core,Hobbycraft Group L,12/08/2015,33.33,Materials,171110 - Education - Arts & Crafts,
Solihull MBC,Children's Services - DSG Schools - Non DMT,Children & Education Services,Hobbycraft Group L ,05/10/2015,22.17,Purchase Card Statement Summary,171110 - Education - Arts & Crafts,
Solihull MBC,Managed Growth,Cultural & Related Services,Holiday Inns ,05/10/2015,138.00,Purchase Card Statement Summary,111200 - Catering - Food & Beverages,
Solihull MBC,Children's Services - DSG Schools - Non DMT,Children & Education Services,Homebase Ltd 039 ,05/10/2015,34.99,Purchase Card Statement Summary,102500 - Building Construction Materials - Timber,
Solihull MBC,Children's Services - DSG Schools - Non DMT,Children & Education Services,Homebase Ltd 039 ,05/10/2015,75.96,Purchase Card Statement Summary,102500 - Building Construction Materials - Timber,
Solihull MBC,Children's Services - DSG Schools - Non DMT,Children & Education Services,Homebase Ltd 039 ,05/10/2015,103.92,Purchase Card Statement Summary,161000 - Domestic Goods - Commercial,
Solihull MBC,Children's Services - DSG Schools - Non DMT,Children & Education Services,Homesense ,05/10/2015,4.99,Purchase Card Statement Summary,169999 - Domestic Goods - Not Elsewhere Classified,
Solihull MBC,Children's Services - DSG Schools - Non DMT,Children & Education Services,Homesense ,05/10/2015,7.99,Purchase Card Statement Summary,169999 - Domestic Goods - Not Elsewhere Classified,
Solihull MBC,Children's Services - DSG Schools - Non DMT,Children & Education Services,Homesense ,05/10/2015,115.87,Purchase Card Statement Summary,111200 - Catering - Food & Beverages,
Solihull MBC,Children's Services - DSG Schools - Non DMT,Children & Education Services,Hostpapa ,05/10/2015,193.97,Purchase Card Statement Summary,261000 - Human Resources - Accommodation,
Solihull MBC,Resources,Central Services to the Public,Hotel Chocolat ,05/10/2015,7.20,Purchase Card Statement Summary,111200 - Catering - Food & Beverages,
Solihull MBC,Children's Services - DSG Schools - Non DMT,Children & Education Services,HP Instant Ink UK ,05/10/2015,7.99,Purchase Card Statement Summary,192000 - Facilities & Management Services - Reprographics,
Solihull MBC,Managed Growth - HRA,Housing Revenue Account,HPsl Cds ,05/10/2015,72.00,General Debtors,349999 - Stationery - Not Elsewhere Classified,
Solihull MBC,Children's Services - DSG Schools - Non DMT,Children & Education Services,HSS Hire ,05/10/2015,-17.55,Purchase Card Statement Summary,219999 - Furniture & Soft Furnishings - Not Elsewhere Classified,
Solihull MBC,Children's Services - DSG Schools - Non DMT,Children & Education Services,HSS Hire ,05/10/2015,230.8,Purchase Card Statement Summary,249999 - Horticultural - Not Elsewhere Classified,
Solihull MBC,Children's Services & Skills,Children & Education Services,Iceland ,05/10/2015,8.00,Purchase Card Statement Summary,111200 - Catering - Food & Beverages,
Solihull MBC,Children's Services - DSG Schools - Non DMT,Children & Education Services,Ikea ,05/10/2015,8,Purchase Card Statement Summary,211210 - Furniture & Soft Furnishings - Soft Furnishings,
Solihull MBC,Children's Services - DSG Schools - Non DMT,Children & Education Services,Ikea ,05/10/2015,40,Purchase Card Statement Summary,211210 - Furniture & Soft Furnishings - Soft Furnishings,
Solihull MBC,Children's Services - DSG Schools - Non DMT,Children & Education Services,Ikea ,05/10/2015,67.70,Purchase Card Statement Summary,211210 - Furniture & Soft Furnishings - Soft Furnishings,
Solihull MBC,Children's Services - DSG Schools - Non DMT,Children & Education Services,Ikea ,05/10/2015,78.00,Purchase Card Statement Summary,211210 - Furniture & Soft Furnishings - Soft Furnishings,
Solihull MBC,Children's Services - DSG Schools - Non DMT,Children & Education Services,Ikea ,05/10/2015,148.85,Purchase Card Statement Summary,151900 - Consultancy - Management,
Solihull MBC,Children's Services - DSG Schools - Non DMT,Children & Education Services,Ikea ,05/10/2015,182,Purchase Card Statement Summary,161000 - Domestic Goods - Commercial,
Solihull MBC,Children's Services - DSG Schools - Non DMT,Children & Education Services,Ikea Online ,05/10/2015,818.00,Purchase Card Statement Summary,209999 - Financial Services - Not Elsewhere Classified,
Solihull MBC,Children's Services - DSG Schools - Non DMT,Children & Education Services,Instant Skips Ltd ,05/10/2015,210.00,Purchase Card Statement Summary,169999 - Domestic Goods - Not Elsewhere Classified,
Solihull MBC,Communities & Adult Social Care,Adult Social Care,Instanta Ltd ,05/10/2015,110.40,Purchase Card Statement Summary,169999 - Domestic Goods - Not Elsewhere Classified,
Solihull MBC,Resources,Central Services to the Public,Intermedia Brand Marke ,05/10/2015,37.20,Purchase Card Statement Summary,161000 - Domestic Goods - Commercial,
Solihull MBC,Children's Services - DSG Schools - Non DMT,Children & Education Services,Itunes.com Bill ,05/10/2015,36.48,Purchase Card Statement Summary,171111 - Education - Audio Visual,
Solihull MBC,Children's Services - DSG Schools - Non DMT,Children & Education Services,Itunes.com Bill ,05/10/2015,36.48,Purchase Card Statement Summary,171111 - Education - Audio Visual,
Solihull MBC,Managed Growth,Cultural & Related Services,ITW Envopak,19/08/2015,176.72,General Office Expenses,111100 - Catering - Equipment & Utensils,
Solihull MBC,Children's Services - DSG Schools - Non DMT,Children & Education Services,Jam Jam Boomerang ,05/10/2015,74.25,Purchase Card Statement Summary,291400 - Arts & Leisure Services - Sport & Fitness,
Solihull MBC,Children's Services - DSG Schools - Non DMT,Children & Education Services,Jewson Hall Green ,05/10/2015,28.02,Purchase Card Statement Summary,102500 - Building Construction Materials - Timber,
Solihull MBC,Children's Services - DSG Schools - Non DMT,Children & Education Services,Johaldairies.co.uk ,05/10/2015,50.42,Purchase Card Statement Summary,111200 - Catering - Food & Beverages,
Solihull MBC,Children's Services & Skills,Children & Education Services,John Williams Butchers ,05/10/2015,25.00,Purchase Card Statement Summary,111200 - Catering - Food & Beverages,
Solihull MBC,Children's Services - DSG Schools - Non DMT,Children & Education Services,Johnstones Dec Centre ,05/10/2015,40.00,Purchase Card Statement Summary,102100 - Building Construction Materials - Paint & Finishing,
Solihull MBC,Children's Services - DSG Schools - Non DMT,Children & Education Services,Johnstones Dec Centre ,05/10/2015,109.99,Purchase Card Statement Summary,111200 - Catering - Food & Beverages,
Solihull MBC,Children's Services & Skills,Children & Education Services,Jolly Tots Ltd ,05/10/2015,109.99,Purchase Card Statement Summary,102100 - Building Construction Materials - Paint & Finishing,
Solihull MBC,Children's Services - DSG Schools - Non DMT,Children & Education Services,JPW ,05/10/2015,60.25,Purchase Card Statement Summary,141000 - Clothing - Children & Adults,
Solihull MBC,Children's Services - DSG Schools - Non DMT,Children & Education Services,JS Online Grocery ,05/10/2015,-0.60,Purchase Card Statement Summary,111200 - Catering - Food & Beverages,
Solihull MBC,Children's Services - DSG Schools - Non DMT,Children & Education Services,JS Online Grocery ,05/10/2015,76.30,Purchase Card Statement Summary,111200 - Catering - Food & Beverages,
Solihull MBC,Children's Services - DSG Schools - Non DMT,Children & Education Services,JS Online Grocery ,05/10/2015,88.3,Purchase Card Statement Summary,111200 - Catering - Food & Beverages,
Solihull MBC,Children's Services - DSG Schools - Non DMT,Children & Education Services,JS Online Grocery ,05/10/2015,99.80,Purchase Card Statement Summary,111200 - Catering - Food & Beverages,
Solihull MBC,Children's Services - DSG Schools - Non DMT,Children & Education Services,JS Online Grocery ,05/10/2015,121.40,Purchase Card Statement Summary,161000 - Domestic Goods - Commercial,
Solihull MBC,Children's Services - DSG Schools - Non DMT,Children & Education Services,JS Online Grocery ,05/10/2015,123.10,Purchase Card Statement Summary,111200 - Catering - Food & Beverages,
Solihull MBC,Children's Services - DSG Schools - Non DMT,Children & Education Services,JS Online Grocery ,05/10/2015,126.50,Purchase Card Statement Summary,301200 - Mail Services - Postage,
Solihull MBC,Children's Services - DSG Schools - Non DMT,Children & Education Services,JS Online Grocery ,05/10/2015,131.95,Purchase Card Statement Summary,349999 - Stationery - Not Elsewhere Classified,
Solihull MBC,Children's Services - DSG Schools - Non DMT,Children & Education Services,JS Online Grocery ,05/10/2015,143.15,Purchase Card Statement Summary,271699 - Information Communications Technology - Telecommunications,
Solihull MBC,Children's Services - DSG Schools - Non DMT,Children & Education Services,JS Online Grocery ,05/10/2015,166.04,Purchase Card Statement Summary,102500 - Building Construction Materials - Timber,
Solihull MBC,Children's Services - DSG Schools - Non DMT,Children & Education Services,JS Online Grocery ,05/10/2015,167.46,Purchase Card Statement Summary,341100 - Stationery - Sundries,
Solihull MBC,Children's Services - DSG Schools - Non DMT,Children & Education Services,JS Online Grocery ,05/10/2015,173.45,Purchase Card Statement Summary,111200 - Catering - Food & Beverages,
Solihull MBC,Children's Services - DSG Schools - Non DMT,Children & Education Services,JS Online Grocery ,05/10/2015,189.05,Purchase Card Statement Summary,111200 - Catering - Food & Beverages,
Solihull MBC,Children's Services - DSG Schools - Non DMT,Children & Education Services,JS Online Grocery ,05/10/2015,193.26,Purchase Card Statement Summary,261600 - Human Resources - Travel & Subsistence,
Solihull MBC,Children's Services - DSG Schools - Non DMT,Children & Education Services,JS Online Grocery ,05/10/2015,194.70,Purchase Card Statement Summary,279999 - Information Communications Technology - Not Elsewhere Classified,
Solihull MBC,Children's Services - DSG Schools - Non DMT,Children & Education Services,JS Online Grocery ,05/10/2015,199.05,Purchase Card Statement Summary,169999 - Domestic Goods - Not Elsewhere Classified,
Solihull MBC,Children's Services - DSG Schools - Non DMT,Children & Education Services,JS Online Grocery ,05/10/2015,204.50,Purchase Card Statement Summary,261600 - Human Resources - Travel & Subsistence,
Solihull MBC,Communities & Adult Social Care,Adult Social Care,Keep Able ,05/10/2015,10.99,Purchase Card Statement Summary,271699 - Information Communications Technology - Telecommunications,
Solihull MBC,Communities & Adult Social Care,Adult Social Care,Keep Able ,05/10/2015,39.5,Purchase Card Statement Summary,311300 - Healthcare - Equipment,
Solihull MBC,Children's Services - DSG Schools - Non DMT,Children & Education Services,Kingsbury Water Park ,05/10/2015,31.00,Purchase Card Statement Summary,209999 - Financial Services - Not Elsewhere Classified,
Solihull MBC,Communities & Adult Social Care,Adult Social Care,Knowle Photographics L ,05/10/2015,5.00,Purchase Card Statement Summary,192000 - Facilities & Management Services - Reprographics,
Solihull MBC,Communities & Adult Social Care,Adult Social Care,Knowle Photographics L ,05/10/2015,5.00,Purchase Card Statement Summary,192000 - Facilities & Management Services - Reprographics,
Solihull MBC,Communities & Adult Social Care,Adult Social Care,Knowle Photographics L ,05/10/2015,6.80,Purchase Card Statement Summary,192000 - Facilities & Management Services - Reprographics,
Solihull MBC,Children's Services & Skills,Children & Education Services,Kodak Alaris Ltd,12/08/2015,201,Furniture & Equipment,191100 - Facilities & Management Services - Design & Photography,
Solihull MBC,Managed Growth,Cultural & Related Services,Lakeland Limited ,05/10/2015,49.52,Purchase Card Statement Summary,169999 - Domestic Goods - Not Elsewhere Classified,
Solihull MBC,Managed Growth,Cultural & Related Services,Lampspecs.co.uk,10/08/2015,31.95,Purchase Card Statement Summary,161000 - Domestic Goods - Commercial,
Solihull MBC,Managed Growth,Planning & Development Services,Land Registry,20/08/2015,3.00,General Office Expenses,209999 - Financial Services - Not Elsewhere Classified,
Solihull MBC,Managed Growth - HRA,Housing Revenue Account,Landmarkinf ,05/10/2015,32,General Debtors,349999 - Stationery - Not Elsewhere Classified,
Solihull MBC,Children's Services & Skills,Children & Education Services,Lavender Hall Fisheries L ,05/10/2015,32.30,Purchase Card Statement Summary,291400 - Arts & Leisure Services - Sport & Fitness,
Solihull MBC,Children's Services & Skills,Children & Education Services,Lavender Hall Fisheries L ,05/10/2015,33.60,Purchase Card Statement Summary,291400 - Arts & Leisure Services - Sport & Fitness,
Solihull MBC,Resources,Central Services to the Public,Lend Lease Real Estate ,05/10/2015,750,Purchase Card Statement Summary,161000 - Domestic Goods - Commercial,
Solihull MBC,Public Health & Commissioning ,Adult Social Care,Lend Lease Retail,01/09/2015,19.00,Purchase Card Statement Summary,151000 - Consultancy - Business,
Solihull MBC,Public Health & Commissioning ,Adult Social Care,Lend Lease Retail,01/09/2015,156,Purchase Card Statement Summary,151000 - Consultancy - Business,
Solihull MBC,Managed Growth,Other Housing Services,Lend Lease Retail,14/08/2015,187.50,Purchase Card Statement Summary,151000 - Consultancy - Business,
Solihull MBC,Managed Growth,Other Housing Services,Lend Lease Retail,14/08/2015,187.5,Purchase Card Statement Summary,151000 - Consultancy - Business,
Solihull MBC,Children's Services & Skills,Children & Education Services,Livebuzz,11/08/2015,10.00,Purchase Card Statement Summary,291300 - Arts & Leisure Services - Performing Arts,
Solihull MBC,Resources,Central Services to the Public,London Midland Sel ,05/10/2015,5.50,Purchase Card Statement Summary,261600 - Human Resources - Travel & Subsistence,
Solihull MBC,Resources,Central Services to the Public,London Midland Sel ,05/10/2015,5.50,Purchase Card Statement Summary,261600 - Human Resources - Travel & Subsistence,
Solihull MBC,Business Change,Central Services to the Public,London Midland Tic,07/08/2015,5.60,Purchase Card Statement Summary,261600 - Human Resources - Travel & Subsistence,
Solihull MBC,Business Change,Central Services to the Public,London Midland Tic,06/08/2015,7.20,Purchase Card Statement Summary,261600 - Human Resources - Travel & Subsistence,
Solihull MBC,Business Change,Central Services to the Public,London Midland Tic,13/08/2015,7.30,Purchase Card Statement Summary,261600 - Human Resources - Travel & Subsistence,
Solihull MBC,Business Change,Children & Education Services,London Midland Tic,11/08/2015,8.20,Clients Expenses,261600 - Human Resources - Travel & Subsistence,
Solihull MBC,Business Change,Children & Education Services,London Midland Tic,03/08/2015,8.20,Clients Expenses,261600 - Human Resources - Travel & Subsistence,
Solihull MBC,Children's Services & Skills,Children & Education Services,Love2Reward.co.uk,04/08/2015,106.00,Purchase Card Statement Summary,201711 - Financial Services - Grants - Non-charitable,
Solihull MBC,Resources,Central Services to the Public,Love2Shop.co.uk ,05/10/2015,25.00,Purchase Card Statement Summary,201711 - Financial Services - Grants - Non-charitable,
Solihull MBC,Communities & Adult Social Care,Adult Social Care,Lul Ticket Machine,03/08/2015,4.80,Purchase Card Statement Summary,261600 - Human Resources - Travel & Subsistence,
Solihull MBC,Children's Services & Skills,Children & Education Services,M & A Lilly,21/08/2015,76.65,Purchase Card Statement Summary,111200 - Catering - Food & Beverages,
Solihull MBC,Children's Services - DSG Schools - Non DMT,Children & Education Services,M Rosenberg & Son ,05/10/2015,16.00,Purchase Card Statement Summary,161000 - Domestic Goods - Commercial,
Solihull MBC,Managed Growth,Cultural & Related Services,M&J Mahoney & Sons Ltd,14/08/2015,300,Materials,102500 - Building Construction Materials - Timber,
Solihull MBC,Managed Growth,Other Housing Services,M&J Mahoney & Sons Ltd ,05/10/2015,5.52,Purchase Card Statement Summary,102500 - Building Construction Materials - Timber,
Solihull MBC,Managed Growth,Other Housing Services,M&J Mahoney & Sons Ltd ,05/10/2015,7.80,Purchase Card Statement Summary,102500 - Building Construction Materials - Timber,
Solihull MBC,Managed Growth,Other Housing Services,M&J Mahoney & Sons Ltd ,05/10/2015,22.20,Purchase Card Statement Summary,102500 - Building Construction Materials - Timber,
Solihull MBC,Managed Growth,Cultural & Related Services,M&J Mahoney & Sons Ltd ,05/10/2015,25.86,Purchase Card Statement Summary,102500 - Building Construction Materials - Timber,
Solihull MBC,Children's Services & Skills,Children & Education Services,M6 Toll,13/08/2015,4.58,Purchase Card Statement Summary,261600 - Human Resources - Travel & Subsistence,
Solihull MBC,Managed Growth,Cultural & Related Services,Magazines Subscription,19/08/2015,39.00,Materials,349999 - Stationery - Not Elsewhere Classified,
Solihull MBC,Communities & Adult Social Care,Adult Social Care,Malcolms Stores Retail,21/08/2015,10.50,Purchase Card Statement Summary,111200 - Catering - Food & Beverages,
Solihull MBC,#N/A,Highways & Transport Services,Maplin Solihull B91 ,05/10/2015,21.78,Purchase Card Statement Summary,169999 - Domestic Goods - Not Elsewhere Classified,
Solihull MBC,Business Change,Children & Education Services,Mcdonalds,03/08/2015,3.57,Clients Expenses,261600 - Human Resources - Travel & Subsistence,
Solihull MBC,Business Change,Children & Education Services,Mcdonalds,11/08/2015,4.14,Clients Expenses,261600 - Human Resources - Travel & Subsistence,
Solihull MBC,Business Change,Children & Education Services,Mcdonalds,13/08/2015,4.32,Clients Expenses,261600 - Human Resources - Travel & Subsistence,
Solihull MBC,Business Change,Children & Education Services,Mcdonalds,26/08/2015,4.67,Clients Expenses,261600 - Human Resources - Travel & Subsistence,
Solihull MBC,Children's Services & Skills,Children & Education Services,Mcdonalds,24/08/2015,6.55,Clients Expenses,261600 - Human Resources - Travel & Subsistence,
Solihull MBC,Children's Services & Skills,Children & Education Services,Mcdonalds ,05/10/2015,3.98,Purchase Card Statement Summary,261600 - Human Resources - Travel & Subsistence,
Solihull MBC,Communities & Adult Social Care,Adult Social Care,Mcdonalds ,05/10/2015,6.38,Purchase Card Statement Summary,261600 - Human Resources - Travel & Subsistence,
Solihull MBC,Communities & Adult Social Care,Adult Social Care,Mcdonalds ,05/10/2015,7.27,Purchase Card Statement Summary,261600 - Human Resources - Travel & Subsistence,
Solihull MBC,Children's Services & Skills,Children & Education Services,Mcdonalds ,05/10/2015,7.28,Purchase Card Statement Summary,261600 - Human Resources - Travel & Subsistence,
Solihull MBC,Communities & Adult Social Care,Adult Social Care,Mcdonalds ,05/10/2015,17.96,Purchase Card Statement Summary,261600 - Human Resources - Travel & Subsistence,
Solihull MBC,Children's Services - DSG Schools - Non DMT,Children & Education Services,Mcdonalds ,05/10/2015,31.68,Purchase Card Statement Summary,261600 - Human Resources - Travel & Subsistence,
Solihull MBC,Children's Services - DSG Schools - Non DMT,Children & Education Services,Mcdonalds ,05/10/2015,38.24,Purchase Card Statement Summary,261600 - Human Resources - Travel & Subsistence,
Solihull MBC,Children's Services - DSG Schools - Non DMT,Children & Education Services,Mcdonalds ,05/10/2015,190.67,Purchase Card Statement Summary,219999 - Furniture & Soft Furnishings - Not Elsewhere Classified,
Solihull MBC,Children's Services - DSG Schools - Non DMT,Children & Education Services,Melbicks Garden ,05/10/2015,51.98,Purchase Card Statement Summary,249999 - Horticultural - Not Elsewhere Classified,
Solihull MBC,Managed Growth - HRA,Housing Revenue Account,Melbicks Garden ,05/10/2015,250.00,General Debtors,261000 - Human Resources - Accommodation,
Solihull MBC,Children's Services - DSG Schools - Non DMT,Children & Education Services,Mfa Bowl ,05/10/2015,65,Purchase Card Statement Summary,291400 - Arts & Leisure Services - Sport & Fitness,
Solihull MBC,Children's Services - DSG Schools - Non DMT,Children & Education Services,Mil Superstickers- ,05/10/2015,17.98,Purchase Card Statement Summary,341100 - Stationery - Sundries,
Solihull MBC,Children's Services - DSG Schools - Non DMT,Children & Education Services,Monarch Airlines ,05/10/2015,1118.46,Purchase Card Statement Summary,271600 - Information Communication Technology - Software - Customised & Bespoke,
Solihull MBC,Children's Services - DSG Schools - Non DMT,Children & Education Services,Monarch Airlines ,05/10/2015,-1118.46,Purchase Card Statement Summary,361300 - Public Transport - Passenger Transport,
Solihull MBC,Children's Services - DSG Schools - Non DMT,Children & Education Services,Monster Skips Ltd ,05/10/2015,190.00,Purchase Card Statement Summary,111200 - Catering - Food & Beverages,
Solihull MBC,Children's Services - DSG Schools - Non DMT,Children & Education Services,Monster Skips Ltd ,05/10/2015,190.00,Purchase Card Statement Summary,219999 - Furniture & Soft Furnishings - Not Elsewhere Classified,
Solihull MBC,Children's Services - DSG Schools - Non DMT,Children & Education Services,Mothercare ,05/10/2015,19.99,Purchase Card Statement Summary,169999 - Domestic Goods - Not Elsewhere Classified,
Solihull MBC,Children's Services - DSG Schools - Non DMT,Children & Education Services,Mothercare Direct-E-Co ,05/10/2015,59.95,Purchase Card Statement Summary,169999 - Domestic Goods - Not Elsewhere Classified,
Solihull MBC,Managed Growth,Cultural & Related Services,Mulberry Bush Ltd,12/08/2015,24.16,Furniture & Equipment,171117 - Education - Toys,
Solihull MBC,Managed Growth,Cultural & Related Services,National Magazine C L Su,17/08/2015,22.99,Materials,349999 - Stationery - Not Elsewhere Classified,
Solihull MBC,Children's Services & Skills,Children & Education Services,NCC Income ,05/10/2015,28.8,Purchase Card Statement Summary,209999 - Financial Services - Not Elsewhere Classified,
Solihull MBC,Children's Services - DSG Schools - Non DMT,Children & Education Services,NDNA ,05/10/2015,59.00,Purchase Card Statement Summary,201710 - Financial Services - Grants - Charitable,
Solihull MBC,Children's Services - DSG Schools - Non DMT,Children & Education Services,New Southern Railw ,05/10/2015,6.00,Purchase Card Statement Summary,261600 - Human Resources - Travel & Subsistence,
Solihull MBC,Managed Growth,Cultural & Related Services,New Statesman,17/08/2015,130,Materials,349999 - Stationery - Not Elsewhere Classified,
Solihull MBC,Children's Services - DSG Schools - Non DMT,Children & Education Services,Next Retail Ltd ,05/10/2015,39.00,Purchase Card Statement Summary,141000 - Clothing - Children & Adults,
Solihull MBC,Communities & Adult Social Care,Adult Social Care,Nobisco Ltd ,05/10/2015,39.37,Purchase Card Statement Summary,131320 - Cleaning & Janitorial - Cleaning Service - External,
Solihull MBC,Children's Services & Skills,Children & Education Services,North Solihull Leisure Ce,17/08/2015,33.33,Other Fees,291400 - Arts & Leisure Services - Sport & Fitness,
Solihull MBC,Managed Growth,Cultural & Related Services,Notcutts Garden Ce,20/08/2015,4.16,Materials,249999 - Horticultural - Not Elsewhere Classified,
Solihull MBC,Managed Growth,Cultural & Related Services,Notcutts Garden Ce,26/08/2015,150.00,Materials,249999 - Horticultural - Not Elsewhere Classified,
Solihull MBC,Managed Growth,Cultural & Related Services,Notcutts Garden Ce,26/08/2015,230.00,Materials,249999 - Horticultural - Not Elsewhere Classified,
Solihull MBC,Communities & Adult Social Care,Adult Social Care,NRS-UK,13/08/2015,79.95,Furniture & Equipment,311600 - Healthcare - Services,
Solihull MBC,Resources,Central Services to the Public,O2 UK ,05/10/2015,13.00,Purchase Card Statement Summary,271699 - Information Communications Technology - Telecommunications,
Solihull MBC,Children's Services - DSG Schools - Non DMT,Children & Education Services,O2 UK Cca Payment ,05/10/2015,142.19,Purchase Card Statement Summary,111200 - Catering - Food & Beverages,
Solihull MBC,Children's Services - DSG Schools - Non DMT,Children & Education Services,O2 UK Payment ,05/10/2015,62.87,Purchase Card Statement Summary,271699 - Information Communications Technology - Telecommunications,
Solihull MBC,Children's Services - DSG Schools - Non DMT,Children & Education Services,Ofsted Moto ,05/10/2015,220,Purchase Card Statement Summary,169999 - Domestic Goods - Not Elsewhere Classified,
Solihull MBC,Children's Services - DSG Schools - Non DMT,Children & Education Services,One Stop 6113 ,05/10/2015,12,Purchase Card Statement Summary,111200 - Catering - Food & Beverages,
Solihull MBC,Managed Growth,Cultural & Related Services,Outdoorgear ,05/10/2015,31.93,Purchase Card Statement Summary,331300 - Sports & Playground Equipment & Maintenance - Sports Equipment,
Solihull MBC,Communities & Adult Social Care,Adult Social Care,P&O Cruises ,05/10/2015,2793.28,Purchase Card Statement Summary,161000 - Domestic Goods - Commercial,
Solihull MBC,Children's Services - DSG Schools - Non DMT,Children & Education Services,Parcel2Go ,05/10/2015,2.59,Purchase Card Statement Summary,301100 - Mail Services - Freight,
Solihull MBC,Children's Services & Skills,Children & Education Services,Partridge & Print ,05/10/2015,152.70,Purchase Card Statement Summary,169999 - Domestic Goods - Not Elsewhere Classified,
Solihull MBC,Communities & Adult Social Care,Adult Social Care,Pavilion Publishing &,20/08/2015,-234,General Office Expenses,349999 - Stationery - Not Elsewhere Classified,
Solihull MBC,Communities & Adult Social Care,Adult Social Care,Pavilion Publishing & ,05/10/2015,-234,Purchase Card Statement Summary,349999 - Stationery - Not Elsewhere Classified,
Solihull MBC,Children's Services - DSG Schools - Non DMT,Children & Education Services,Paypal *Aidcleaning ,05/10/2015,22.99,Purchase Card Statement Summary,370000 - Utilities,
Solihull MBC,Children's Services & Skills,Children & Education Services,Paypal *Awpcp ,05/10/2015,264.77,Purchase Card Statement Summary,261400 - Human Resources - Temporary & Agency Staff,
Solihull MBC,Children's Services & Skills,Children & Education Services,Paypal *Cleaningsho ,05/10/2015,102.99,Purchase Card Statement Summary,111200 - Catering - Food & Beverages,
Solihull MBC,Communities & Adult Social Care,Adult Social Care,Paypal *Creatingcom ,05/10/2015,29.95,Purchase Card Statement Summary,311300 - Healthcare - Equipment,
Solihull MBC,Children's Services - DSG Schools - Non DMT,Children & Education Services,Paypal *Davidrichar ,05/10/2015,12.99,Purchase Card Statement Summary,169999 - Domestic Goods - Not Elsewhere Classified,
Solihull MBC,Children's Services - DSG Schools - Non DMT,Children & Education Services,Paypal *Home Fusion ,05/10/2015,6.99,Purchase Card Statement Summary,211100 - Furniture & Soft Furnishings - Domestic Furniture,
Solihull MBC,Managed Growth,Planning & Development Services,Paypal *Rtpi,27/08/2015,120.00,Training,201710 - Financial Services - Grants - Charitable,
Solihull MBC,Resources,Central Services to the Public,Paypal *Toughook ,05/10/2015,9.95,Purchase Card Statement Summary,161100 - Domestic Goods - Industrial,
Solihull MBC,Children's Services - DSG Schools - Non DMT,Children & Education Services,Paypal *Traders Ltd ,05/10/2015,107.76,Purchase Card Statement Summary,271200 - Information Communications Technology - Hardware,
Solihull MBC,Children's Services & Skills,Children & Education Services,Paypal *Webestoresl ,05/10/2015,29.7,Purchase Card Statement Summary,211100 - Furniture & Soft Furnishings - Domestic Furniture,
Solihull MBC,Business Change,Central Services to the Public,PC World Online,13/08/2015,41.66,General Office Expenses,169999 - Domestic Goods - Not Elsewhere Classified,
Solihull MBC,Children's Services - DSG Schools - Non DMT,Children & Education Services,Pets At Home Ltd ,05/10/2015,31.50,Purchase Card Statement Summary,199999 - Facilities & Management Services - Not Elsewhere Classified,
Solihull MBC,Children's Services & Skills,Children & Education Services,Post Office Counter,04/08/2015,6.45,Clients Expenses,301200 - Mail Services - Postage,
Solihull MBC,Children's Services & Skills,Children & Education Services,Post Office Counter,18/08/2015,6.45,Clients Expenses,301200 - Mail Services - Postage,
Solihull MBC,Communities & Adult Social Care,Adult Social Care,Post Office Counter,14/08/2015,33.3,Purchase Card Statement Summary,301200 - Mail Services - Postage,
Solihull MBC,Children's Services - DSG Schools - Non DMT,Children & Education Services,Post Office Counter ,05/10/2015,2.8,Purchase Card Statement Summary,301200 - Mail Services - Postage,
Solihull MBC,Children's Services - DSG Central.,Children & Education Services,Post Office Counter ,05/10/2015,7.58,Purchase Card Statement Summary,301200 - Mail Services - Postage,
Solihull MBC,Children's Services - DSG Schools - Non DMT,Children & Education Services,Post Office Counter ,05/10/2015,12.05,Purchase Card Statement Summary,301200 - Mail Services - Postage,
Solihull MBC,Children's Services - DSG Schools - Non DMT,Children & Education Services,Post Office Counter ,05/10/2015,29.98,Purchase Card Statement Summary,301200 - Mail Services - Postage,
Solihull MBC,Children's Services - DSG Schools - Non DMT,Children & Education Services,Post Office Counter ,05/10/2015,33.48,Purchase Card Statement Summary,301200 - Mail Services - Postage,
Solihull MBC,Children's Services & Skills,Children & Education Services,Post Office Counter ,05/10/2015,55.75,Purchase Card Statement Summary,301200 - Mail Services - Postage,
Solihull MBC,Business Change,Central Services to the Public,Posturite (UK) Ltd,12/08/2015,64.33,Purchase Card Statement Summary,211000 - Furniture & Soft Furnishings - Commercial Furniture,
Solihull MBC,Governance  ,Central Services to the Public,Posturite (UK) Ltd ,05/10/2015,29.95,Purchase Card Statement Summary,211000 - Furniture & Soft Furnishings - Commercial Furniture,
Solihull MBC,Managed Growth,Environmental and Regulatory Services,Poundland Ltd 1080 ,05/10/2015,19,Purchase Card Statement Summary,169999 - Domestic Goods - Not Elsewhere Classified,
Solihull MBC,Managed Growth,Highways & Transport Services,Poundland Ltd 1713,01/09/2015,8.33,Purchase Card Statement Summary,169999 - Domestic Goods - Not Elsewhere Classified,
Solihull MBC,Children's Services - DSG Schools - Non DMT,Children & Education Services,Poundworld Retail ,05/10/2015,13.00,Purchase Card Statement Summary,169999 - Domestic Goods - Not Elsewhere Classified,
Solihull MBC,Children's Services & Skills,Children & Education Services,Pp *Fastspring Relevans ,05/10/2015,63.36,Purchase Card Statement Summary,271430 - Information Communication Technology - Software - Commercial Off-The-Shelf,
Solihull MBC,Managed Growth - HRA,Housing Revenue Account,Premier Inn44512655 ,05/10/2015,193.75,General Debtors,111200 - Catering - Food & Beverages,
Solihull MBC,Managed Growth,Cultural & Related Services,Private Eye,19/08/2015,28.00,Materials,161000 - Domestic Goods - Commercial,
Solihull MBC,Resources,Central Services to the Public,Prk Mailbox B'ham Upt ,05/10/2015,12.50,Purchase Card Statement Summary,261600 - Human Resources - Travel & Subsistence,
Solihull MBC,Communities & Adult Social Care,Adult Social Care,Red Funnel Group,06/08/2015,30.80,Purchase Card Statement Summary,361300 - Public Transport - Passenger Transport,
Solihull MBC,Managed Growth - HRA,Housing Revenue Account,Riba Enterprises Ltd ,05/10/2015,444.50,General Debtors,169999 - Domestic Goods - Not Elsewhere Classified,
Solihull MBC,Managed Growth,Cultural & Related Services,Rigby Taylor ,05/10/2015,27.12,Purchase Card Statement Summary,249999 - Horticultural - Not Elsewhere Classified,
Solihull MBC,Children's Services & Skills,Children & Education Services,Royal Mail Group,25/08/2015,40,Postage & Courier Services,301200 - Mail Services - Postage,
Solihull MBC,Children's Services & Skills,Children & Education Services,Royal Mail S&C,04/08/2015,110.50,Postage & Courier Services,301200 - Mail Services - Postage,
Solihull MBC,Managed Growth,Cultural & Related Services,RS Components,28/08/2015,12.50,Purchase Card Statement Summary,101100 - Building Construction Materials - Electrical,
Solihull MBC,Managed Growth,Cultural & Related Services,RS Components,21/08/2015,31.38,Purchase Card Statement Summary,101100 - Building Construction Materials - Electrical,
Solihull MBC,Managed Growth,Cultural & Related Services,RS Components,14/08/2015,67.01,Purchase Card Statement Summary,101100 - Building Construction Materials - Electrical,
Solihull MBC,Children's Services & Skills,Children & Education Services,S.I.S Furnishings Limi ,05/10/2015,150.00,Purchase Card Statement Summary,211210 - Furniture & Soft Furnishings - Soft Furnishings,
Solihull MBC,Managed Growth,Highways & Transport Services,Sainsburys S/Mkts,12/08/2015,3.2,Purchase Card Statement Summary,111200 - Catering - Food & Beverages,
Solihull MBC,Managed Growth,Other Housing Services,Sainsburys S/Mkts,24/08/2015,4.00,Purchase Card Statement Summary,111200 - Catering - Food & Beverages,
Solihull MBC,Communities & Adult Social Care,Adult Social Care,Sainsburys S/Mkts,13/08/2015,27.45,Purchase Card Statement Summary,381100 - Vehicle Management - Fuel,
Solihull MBC,Children's Services - DSG Schools - Non DMT,Children & Education Services,Sainsbury's Smkt ,05/10/2015,1.35,Purchase Card Statement Summary,111200 - Catering - Food & Beverages,
Solihull MBC,Children's Services - DSG Schools - Non DMT,Children & Education Services,Sainsbury's Smkt ,05/10/2015,2.5,Purchase Card Statement Summary,111200 - Catering - Food & Beverages,
Solihull MBC,Children's Services - DSG Schools - Non DMT,Children & Education Services,Sainsbury's Smkt ,05/10/2015,4.25,Purchase Card Statement Summary,111200 - Catering - Food & Beverages,
Solihull MBC,Communities & Adult Social Care,Adult Social Care,Sainsbury's Smkt ,05/10/2015,11.00,Purchase Card Statement Summary,111200 - Catering - Food & Beverages,
Solihull MBC,Communities & Adult Social Care,Adult Social Care,Sainsbury's Smkt ,05/10/2015,13.5,Purchase Card Statement Summary,111200 - Catering - Food & Beverages,
Solihull MBC,Communities & Adult Social Care,Adult Social Care,Sainsbury's Smkt ,05/10/2015,21.27,Purchase Card Statement Summary,111200 - Catering - Food & Beverages,
Solihull MBC,Communities & Adult Social Care,Adult Social Care,Sainsbury's Smkt ,05/10/2015,29.09,Purchase Card Statement Summary,111200 - Catering - Food & Beverages,
Solihull MBC,Communities & Adult Social Care,Adult Social Care,Sainsbury's Smkt ,05/10/2015,31.15,Purchase Card Statement Summary,111200 - Catering - Food & Beverages,
Solihull MBC,Communities & Adult Social Care,Adult Social Care,Sainsbury's Smkt ,05/10/2015,38.04,Purchase Card Statement Summary,111200 - Catering - Food & Beverages,
Solihull MBC,Communities & Adult Social Care,Adult Social Care,Sainsbury's Smkt ,05/10/2015,41,Purchase Card Statement Summary,111200 - Catering - Food & Beverages,
Solihull MBC,Communities & Adult Social Care,Adult Social Care,Sainsbury's Smkt ,05/10/2015,41.11,Purchase Card Statement Summary,111200 - Catering - Food & Beverages,
Solihull MBC,Communities & Adult Social Care,Adult Social Care,Sainsbury's Smkt ,05/10/2015,46.53,Purchase Card Statement Summary,111200 - Catering - Food & Beverages,
Solihull MBC,Managed Growth - HRA,Housing Revenue Account,Sainsbury's Smkt ,05/10/2015,58.6,General Debtors,111200 - Catering - Food & Beverages,
Solihull MBC,Managed Growth - HRA,Housing Revenue Account,Sainsbury's Smkt ,05/10/2015,66,General Debtors,111200 - Catering - Food & Beverages,
Solihull MBC,Children's Services - DSG Schools - Non DMT,Children & Education Services,Sainsbury's Smkt ,05/10/2015,119.09,Purchase Card Statement Summary,111200 - Catering - Food & Beverages,
Solihull MBC,Children's Services - DSG Schools - Non DMT,Children & Education Services,Sainsburys Smkts ,05/10/2015,7.60,Purchase Card Statement Summary,111200 - Catering - Food & Beverages,
Solihull MBC,Children's Services - DSG Central.,Children & Education Services,Sainsburys Smkts ,05/10/2015,9.00,Purchase Card Statement Summary,111200 - Catering - Food & Beverages,
Solihull MBC,Communities & Adult Social Care,Adult Social Care,Sainsburys Smkts ,05/10/2015,11.80,Purchase Card Statement Summary,111200 - Catering - Food & Beverages,
Solihull MBC,Children's Services - DSG Schools - Non DMT,Children & Education Services,Sainsburys Smkts ,05/10/2015,15.00,Purchase Card Statement Summary,381100 - Vehicle Management - Fuel,
Solihull MBC,Children's Services - DSG Schools - Non DMT,Children & Education Services,Sainsburys Smkts ,05/10/2015,17.10,Purchase Card Statement Summary,381100 - Vehicle Management - Fuel,
Solihull MBC,Communities & Adult Social Care,Adult Social Care,Sainsburys Smkts ,05/10/2015,21.10,Purchase Card Statement Summary,111200 - Catering - Food & Beverages,
Solihull MBC,Communities & Adult Social Care,Adult Social Care,Sainsburys Smkts ,05/10/2015,28.05,Purchase Card Statement Summary,111200 - Catering - Food & Beverages,
Solihull MBC,Communities & Adult Social Care,Adult Social Care,Sainsburys Smkts ,05/10/2015,47.37,Purchase Card Statement Summary,111200 - Catering - Food & Beverages,
Solihull MBC,Communities & Adult Social Care,Adult Social Care,Sainsburys Smkts ,05/10/2015,77.69,Purchase Card Statement Summary,111200 - Catering - Food & Beverages,
Solihull MBC,Communities & Adult Social Care,Adult Social Care,Sainsburys Smkts ,05/10/2015,117.83,Purchase Card Statement Summary,169999 - Domestic Goods - Not Elsewhere Classified,
Solihull MBC,Children's Services - DSG Schools - Non DMT,Children & Education Services,Schoolbadgestore. ,05/10/2015,60.66,Purchase Card Statement Summary,161000 - Domestic Goods - Commercial,
Solihull MBC,Managed Growth,Highways & Transport Services,Screwfix Direct,10/08/2015,14.99,Purchase Card Statement Summary,102500 - Building Construction Materials - Timber,
Solihull MBC,Managed Growth - HRA,Housing Revenue Account,Screwfix Direct ,05/10/2015,50.97,General Debtors,102500 - Building Construction Materials - Timber,
Solihull MBC,Children's Services - DSG Schools - Non DMT,Children & Education Services,Screwfix Direct ,05/10/2015,605.98,Purchase Card Statement Summary,261400 - Human Resources - Temporary & Agency Staff,
Solihull MBC,Children's Services - DSG Schools - Non DMT,Children & Education Services,Screwfix Direct Lt ,05/10/2015,12.81,Purchase Card Statement Summary,102500 - Building Construction Materials - Timber,
Solihull MBC,Children's Services - DSG Schools - Non DMT,Children & Education Services,Screwfix Direct Lt ,05/10/2015,339.98,Purchase Card Statement Summary,169999 - Domestic Goods - Not Elsewhere Classified,
Solihull MBC,Managed Growth,Cultural & Related Services,Seddon Garden Mach ,05/10/2015,112.85,Purchase Card Statement Summary,111200 - Catering - Food & Beverages,
Solihull MBC,Children's Services - DSG Schools - Non DMT,Children & Education Services,Selco Trade Centres Lt ,05/10/2015,159.45,Purchase Card Statement Summary,169999 - Domestic Goods - Not Elsewhere Classified,
Solihull MBC,Children's Services - DSG Schools - Non DMT,Children & Education Services,Showcase Cinemas(Blue) ,05/10/2015,-8.7,Purchase Card Statement Summary,299999 - Arts & Leisure Services - Not Elsewhere Classified,
Solihull MBC,Managed Growth - HRA,Housing Revenue Account,Sign A Rama ,05/10/2015,153.60,General Debtors,171011 - Education - School Services,
Solihull MBC,Children's Services & Skills,Children & Education Services,SMBC� Revenues - C ,05/10/2015,-12.2,Purchase Card Statement Summary,151900 - Consultancy - Management,
Solihull MBC,Children's Services & Skills,Children & Education Services,SMBC� Revenues - C ,05/10/2015,12.20,Purchase Card Statement Summary,151900 - Consultancy - Management,
Solihull MBC,Children's Services - DSG Schools - Non DMT,Children & Education Services,Sportsdirect 188 ,05/10/2015,6.48,Purchase Card Statement Summary,331300 - Sports & Playground Equipment & Maintenance - Sports Equipment,
Solihull MBC,Children's Services - DSG Schools - Non DMT,Children & Education Services,Staples UK ,05/10/2015,54.94,Purchase Card Statement Summary,341100 - Stationery - Sundries,
Solihull MBC,Managed Growth - HRA,Housing Revenue Account,Stonebridge Golf Centre ,05/10/2015,14.40,General Debtors,291400 - Arts & Leisure Services - Sport & Fitness,
Solihull MBC,Managed Growth - HRA,Housing Revenue Account,Stonebridge Golf Centre ,05/10/2015,291.40,General Debtors,161000 - Domestic Goods - Commercial,
Solihull MBC,Children's Services - DSG Schools - Non DMT,Children & Education Services,Sunny Supermarket ,05/10/2015,6.1,Purchase Card Statement Summary,111200 - Catering - Food & Beverages,
Solihull MBC,Resources,Other Housing Services,Superdrug Stores PLC,19/08/2015,8.49,Clients Expenses,311200 - Healthcare - Drugs,
Solihull MBC,Business Change,Central Services to the Public,Surveymonkey.com ,05/10/2015,299,Purchase Card Statement Summary,291400 - Arts & Leisure Services - Sport & Fitness,
Solihull MBC,Children's Services - DSG Schools - Non DMT,Children & Education Services,Surveymonkey.com ,05/10/2015,299,Purchase Card Statement Summary,279999 - Information Communications Technology - Not Elsewhere Classified,
Solihull MBC,Managed Growth,Planning & Development Services,Swansea Timber & P,04/08/2015,224,Purchase Card Statement Summary,101400 - Building Construction Materials - General Materials,
Solihull MBC,Children's Services - DSG Schools - Non DMT,Children & Education Services,Tates Store 346011 ,05/10/2015,6.97,Purchase Card Statement Summary,111200 - Catering - Food & Beverages,
Solihull MBC,Children's Services - DSG Schools - Non DMT,Children & Education Services,Tesco Delivery Saver2 ,05/10/2015,6.00,Purchase Card Statement Summary,161000 - Domestic Goods - Commercial,
Solihull MBC,Children's Services - DSG Schools - Non DMT,Children & Education Services,Tesco Delivery Saver2 ,05/10/2015,6.00,Purchase Card Statement Summary,161000 - Domestic Goods - Commercial,
Solihull MBC,Children's Services - DSG Schools - Non DMT,Children & Education Services,Tesco Direct ,05/10/2015,120.00,Purchase Card Statement Summary,201710 - Financial Services - Grants - Charitable,
Solihull MBC,Children's Services - DSG Schools - Non DMT,Children & Education Services,Tesco Store 2624 ,05/10/2015,6.40,Purchase Card Statement Summary,111200 - Catering - Food & Beverages,
Solihull MBC,Children's Services - DSG Schools - Non DMT,Children & Education Services,Tesco Store 2624 ,05/10/2015,7.56,Purchase Card Statement Summary,111200 - Catering - Food & Beverages,
Solihull MBC,Children's Services - DSG Schools - Non DMT,Children & Education Services,Tesco Store 2624 ,05/10/2015,7.95,Purchase Card Statement Summary,111200 - Catering - Food & Beverages,
Solihull MBC,Children's Services - DSG Schools - Non DMT,Children & Education Services,Tesco Store 2624 ,05/10/2015,13.98,Purchase Card Statement Summary,111200 - Catering - Food & Beverages,
Solihull MBC,Communities & Adult Social Care,Adult Social Care,Tesco Store 2785 ,05/10/2015,13.41,Purchase Card Statement Summary,111200 - Catering - Food & Beverages,
Solihull MBC,Communities & Adult Social Care,Adult Social Care,Tesco Store 2785 ,05/10/2015,46.42,Purchase Card Statement Summary,111200 - Catering - Food & Beverages,
Solihull MBC,Children's Services - DSG Schools - Non DMT,Children & Education Services,Tesco Store 3188 ,05/10/2015,2.55,Purchase Card Statement Summary,111200 - Catering - Food & Beverages,
Solihull MBC,Communities & Adult Social Care,Adult Social Care,Tesco Store 3188 ,05/10/2015,5.00,Purchase Card Statement Summary,111200 - Catering - Food & Beverages,
Solihull MBC,Communities & Adult Social Care,Adult Social Care,Tesco Store 3188 ,05/10/2015,7.43,Purchase Card Statement Summary,111200 - Catering - Food & Beverages,
Solihull MBC,Communities & Adult Social Care,Adult Social Care,Tesco Store 3188 ,05/10/2015,7.60,Purchase Card Statement Summary,111200 - Catering - Food & Beverages,
Solihull MBC,Communities & Adult Social Care,Adult Social Care,Tesco Store 3188 ,05/10/2015,8.70,Purchase Card Statement Summary,111200 - Catering - Food & Beverages,
Solihull MBC,Communities & Adult Social Care,Adult Social Care,Tesco Store 3188 ,05/10/2015,9.87,Purchase Card Statement Summary,111200 - Catering - Food & Beverages,
Solihull MBC,Communities & Adult Social Care,Adult Social Care,Tesco Store 3188 ,05/10/2015,10.33,Purchase Card Statement Summary,111200 - Catering - Food & Beverages,
Solihull MBC,Communities & Adult Social Care,Adult Social Care,Tesco Store 3188 ,05/10/2015,12.00,Purchase Card Statement Summary,111200 - Catering - Food & Beverages,
Solihull MBC,Communities & Adult Social Care,Adult Social Care,Tesco Store 3188 ,05/10/2015,15.04,Purchase Card Statement Summary,111200 - Catering - Food & Beverages,
Solihull MBC,Communities & Adult Social Care,Adult Social Care,Tesco Store 3188 ,05/10/2015,15.26,Purchase Card Statement Summary,111200 - Catering - Food & Beverages,
Solihull MBC,Communities & Adult Social Care,Adult Social Care,Tesco Store 3188 ,05/10/2015,15.27,Purchase Card Statement Summary,111200 - Catering - Food & Beverages,
Solihull MBC,Communities & Adult Social Care,Adult Social Care,Tesco Store 3188 ,05/10/2015,15.32,Purchase Card Statement Summary,111200 - Catering - Food & Beverages,
Solihull MBC,Communities & Adult Social Care,Adult Social Care,Tesco Store 3188 ,05/10/2015,16.44,Purchase Card Statement Summary,111200 - Catering - Food & Beverages,
Solihull MBC,Communities & Adult Social Care,Adult Social Care,Tesco Store 3188 ,05/10/2015,16.65,Purchase Card Statement Summary,111200 - Catering - Food & Beverages,
Solihull MBC,Communities & Adult Social Care,Adult Social Care,Tesco Store 3188 ,05/10/2015,17.17,Purchase Card Statement Summary,111200 - Catering - Food & Beverages,
Solihull MBC,Communities & Adult Social Care,Adult Social Care,Tesco Store 3188 ,05/10/2015,17.46,Purchase Card Statement Summary,111200 - Catering - Food & Beverages,
Solihull MBC,Communities & Adult Social Care,Adult Social Care,Tesco Store 3188 ,05/10/2015,18,Purchase Card Statement Summary,111200 - Catering - Food & Beverages,
Solihull MBC,Communities & Adult Social Care,Adult Social Care,Tesco Store 3188 ,05/10/2015,18.06,Purchase Card Statement Summary,111200 - Catering - Food & Beverages,
Solihull MBC,Communities & Adult Social Care,Adult Social Care,Tesco Store 3188 ,05/10/2015,18.23,Purchase Card Statement Summary,111200 - Catering - Food & Beverages,
Solihull MBC,Communities & Adult Social Care,Adult Social Care,Tesco Store 3188 ,05/10/2015,18.60,Purchase Card Statement Summary,111200 - Catering - Food & Beverages,
Solihull MBC,Communities & Adult Social Care,Adult Social Care,Tesco Store 3188 ,05/10/2015,19.18,Purchase Card Statement Summary,111200 - Catering - Food & Beverages,
Solihull MBC,Communities & Adult Social Care,Adult Social Care,Tesco Store 3188 ,05/10/2015,19.99,Purchase Card Statement Summary,111200 - Catering - Food & Beverages,
Solihull MBC,Communities & Adult Social Care,Adult Social Care,Tesco Store 3188 ,05/10/2015,20.03,Purchase Card Statement Summary,111200 - Catering - Food & Beverages,
Solihull MBC,Communities & Adult Social Care,Adult Social Care,Tesco Store 3188 ,05/10/2015,20.28,Purchase Card Statement Summary,111200 - Catering - Food & Beverages,
Solihull MBC,Communities & Adult Social Care,Adult Social Care,Tesco Store 3188 ,05/10/2015,20.97,Purchase Card Statement Summary,111200 - Catering - Food & Beverages,
Solihull MBC,Communities & Adult Social Care,Adult Social Care,Tesco Store 3188 ,05/10/2015,22.56,Purchase Card Statement Summary,111200 - Catering - Food & Beverages,
Solihull MBC,Communities & Adult Social Care,Adult Social Care,Tesco Store 3188 ,05/10/2015,24.8,Purchase Card Statement Summary,111200 - Catering - Food & Beverages,
Solihull MBC,Communities & Adult Social Care,Adult Social Care,Tesco Store 3188 ,05/10/2015,26.59,Purchase Card Statement Summary,111200 - Catering - Food & Beverages,
Solihull MBC,Communities & Adult Social Care,Adult Social Care,Tesco Store 3188 ,05/10/2015,27.46,Purchase Card Statement Summary,111200 - Catering - Food & Beverages,
Solihull MBC,Communities & Adult Social Care,Adult Social Care,Tesco Store 3188 ,05/10/2015,27.49,Purchase Card Statement Summary,111200 - Catering - Food & Beverages,
Solihull MBC,Communities & Adult Social Care,Adult Social Care,Tesco Store 3188 ,05/10/2015,28.26,Purchase Card Statement Summary,111200 - Catering - Food & Beverages,
Solihull MBC,Communities & Adult Social Care,Adult Social Care,Tesco Store 3188 ,05/10/2015,29.32,Purchase Card Statement Summary,111200 - Catering - Food & Beverages,
Solihull MBC,Communities & Adult Social Care,Adult Social Care,Tesco Store 3188 ,05/10/2015,29.54,Purchase Card Statement Summary,111200 - Catering - Food & Beverages,
Solihull MBC,Communities & Adult Social Care,Adult Social Care,Tesco Store 3188 ,05/10/2015,29.71,Purchase Card Statement Summary,111200 - Catering - Food & Beverages,
Solihull MBC,Communities & Adult Social Care,Adult Social Care,Tesco Store 3188 ,05/10/2015,31.40,Purchase Card Statement Summary,111200 - Catering - Food & Beverages,
Solihull MBC,Children's Services - DSG Schools - Non DMT,Children & Education Services,Tesco Store 3188 ,05/10/2015,32.31,Purchase Card Statement Summary,111200 - Catering - Food & Beverages,
Solihull MBC,Children's Services - DSG Schools - Non DMT,Children & Education Services,Tesco Store 3188 ,05/10/2015,32.4,Purchase Card Statement Summary,111200 - Catering - Food & Beverages,
Solihull MBC,Communities & Adult Social Care,Adult Social Care,Tesco Store 3188 ,05/10/2015,34.56,Purchase Card Statement Summary,111200 - Catering - Food & Beverages,
Solihull MBC,Communities & Adult Social Care,Adult Social Care,Tesco Store 3188 ,05/10/2015,36.28,Purchase Card Statement Summary,111200 - Catering - Food & Beverages,
Solihull MBC,Children's Services - DSG Schools - Non DMT,Children & Education Services,Tesco Store 3188 ,05/10/2015,36.65,Purchase Card Statement Summary,111200 - Catering - Food & Beverages,
Solihull MBC,Children's Services - DSG Schools - Non DMT,Children & Education Services,Tesco Store 3188 ,05/10/2015,40.14,Purchase Card Statement Summary,111200 - Catering - Food & Beverages,
Solihull MBC,Communities & Adult Social Care,Adult Social Care,Tesco Store 3188 ,05/10/2015,40.61,Purchase Card Statement Summary,111200 - Catering - Food & Beverages,
Solihull MBC,Communities & Adult Social Care,Adult Social Care,Tesco Store 3188 ,05/10/2015,41.13,Purchase Card Statement Summary,111200 - Catering - Food & Beverages,
Solihull MBC,Communities & Adult Social Care,Adult Social Care,Tesco Store 3188 ,05/10/2015,44.51,Purchase Card Statement Summary,111200 - Catering - Food & Beverages,
Solihull MBC,Communities & Adult Social Care,Adult Social Care,Tesco Store 3188 ,05/10/2015,54.08,Purchase Card Statement Summary,111200 - Catering - Food & Beverages,
Solihull MBC,Communities & Adult Social Care,Adult Social Care,Tesco Store 3188 ,05/10/2015,57.37,Purchase Card Statement Summary,111200 - Catering - Food & Beverages,
Solihull MBC,Communities & Adult Social Care,Adult Social Care,Tesco Store 3188 ,05/10/2015,57.61,Purchase Card Statement Summary,111200 - Catering - Food & Beverages,
Solihull MBC,Communities & Adult Social Care,Adult Social Care,Tesco Store 3188 ,05/10/2015,64.35,Purchase Card Statement Summary,111200 - Catering - Food & Beverages,
Solihull MBC,Communities & Adult Social Care,Adult Social Care,Tesco Store 3188 ,05/10/2015,69.93,Purchase Card Statement Summary,111200 - Catering - Food & Beverages,
Solihull MBC,Children's Services - DSG Schools - Non DMT,Children & Education Services,Tesco Store 3188 ,05/10/2015,70.97,Purchase Card Statement Summary,111200 - Catering - Food & Beverages,
Solihull MBC,Children's Services - DSG Schools - Non DMT,Children & Education Services,Tesco Store 3188 ,05/10/2015,75.33,Purchase Card Statement Summary,111200 - Catering - Food & Beverages,
Solihull MBC,Communities & Adult Social Care,Adult Social Care,Tesco Store 3188 ,05/10/2015,75.86,Purchase Card Statement Summary,111200 - Catering - Food & Beverages,
Solihull MBC,Communities & Adult Social Care,Adult Social Care,Tesco Store 3188 ,05/10/2015,76.30,Purchase Card Statement Summary,111200 - Catering - Food & Beverages,
Solihull MBC,Communities & Adult Social Care,Adult Social Care,Tesco Store 3188 ,05/10/2015,76.73,Purchase Card Statement Summary,111200 - Catering - Food & Beverages,
Solihull MBC,Communities & Adult Social Care,Adult Social Care,Tesco Store 3188 ,05/10/2015,77.03,Purchase Card Statement Summary,111200 - Catering - Food & Beverages,
Solihull MBC,Communities & Adult Social Care,Adult Social Care,Tesco Store 3188 ,05/10/2015,79.15,Purchase Card Statement Summary,111200 - Catering - Food & Beverages,
Solihull MBC,Communities & Adult Social Care,Adult Social Care,Tesco Store 3188 ,05/10/2015,79.33,Purchase Card Statement Summary,111200 - Catering - Food & Beverages,
Solihull MBC,Communities & Adult Social Care,Adult Social Care,Tesco Store 3188 ,05/10/2015,80.88,Purchase Card Statement Summary,111200 - Catering - Food & Beverages,
Solihull MBC,Communities & Adult Social Care,Adult Social Care,Tesco Store 3188 ,05/10/2015,84.00,Purchase Card Statement Summary,261600 - Human Resources - Travel & Subsistence,
Solihull MBC,Communities & Adult Social Care,Adult Social Care,Tesco Store 3188 ,05/10/2015,84.52,Purchase Card Statement Summary,111200 - Catering - Food & Beverages,
Solihull MBC,Communities & Adult Social Care,Adult Social Care,Tesco Store 3188 ,05/10/2015,85.32,Purchase Card Statement Summary,291400 - Arts & Leisure Services - Sport & Fitness,
Solihull MBC,Communities & Adult Social Care,Adult Social Care,Tesco Store 3188 ,05/10/2015,88.15,Purchase Card Statement Summary,199999 - Facilities & Management Services - Not Elsewhere Classified,
Solihull MBC,Communities & Adult Social Care,Adult Social Care,Tesco Store 3188 ,05/10/2015,88.24,Purchase Card Statement Summary,261600 - Human Resources - Travel & Subsistence,
Solihull MBC,Communities & Adult Social Care,Adult Social Care,Tesco Store 3188 ,05/10/2015,90.50,Purchase Card Statement Summary,169999 - Domestic Goods - Not Elsewhere Classified,
Solihull MBC,Children's Services - DSG Schools - Non DMT,Children & Education Services,Tesco Store 3188 ,05/10/2015,91.53,Purchase Card Statement Summary,169999 - Domestic Goods - Not Elsewhere Classified,
Solihull MBC,Communities & Adult Social Care,Adult Social Care,Tesco Store 3188 ,05/10/2015,95.53,Purchase Card Statement Summary,261600 - Human Resources - Travel & Subsistence,
Solihull MBC,Communities & Adult Social Care,Adult Social Care,Tesco Store 3188 ,05/10/2015,95.96,Purchase Card Statement Summary,341100 - Stationery - Sundries,
Solihull MBC,Communities & Adult Social Care,Adult Social Care,Tesco Store 3188 ,05/10/2015,100.98,Purchase Card Statement Summary,111200 - Catering - Food & Beverages,
Solihull MBC,Communities & Adult Social Care,Adult Social Care,Tesco Store 3188 ,05/10/2015,101.24,Purchase Card Statement Summary,111200 - Catering - Food & Beverages,
Solihull MBC,Communities & Adult Social Care,Adult Social Care,Tesco Store 3188 ,05/10/2015,109.83,Purchase Card Statement Summary,271600 - Information Communication Technology - Software - Customised & Bespoke,
Solihull MBC,Communities & Adult Social Care,Adult Social Care,Tesco Store 3188 ,05/10/2015,115.87,Purchase Card Statement Summary,"390000 - Works - Construction, Repair & Maintenance",
Solihull MBC,Communities & Adult Social Care,Adult Social Care,Tesco Store 3188 ,05/10/2015,117.37,Purchase Card Statement Summary,169999 - Domestic Goods - Not Elsewhere Classified,
Solihull MBC,Communities & Adult Social Care,Adult Social Care,Tesco Store 3188 ,05/10/2015,122.32,Purchase Card Statement Summary,111200 - Catering - Food & Beverages,
Solihull MBC,Communities & Adult Social Care,Adult Social Care,Tesco Store 3188 ,05/10/2015,127.95,Purchase Card Statement Summary,111200 - Catering - Food & Beverages,
Solihull MBC,Children's Services - DSG Schools - Non DMT,Children & Education Services,Tesco Stores 2328 ,05/10/2015,60.98,Purchase Card Statement Summary,111200 - Catering - Food & Beverages,
Solihull MBC,Children's Services - DSG Schools - Non DMT,Children & Education Services,Tesco Stores 2328 ,05/10/2015,68.67,Purchase Card Statement Summary,111200 - Catering - Food & Beverages,
Solihull MBC,Children's Services - DSG Schools - Non DMT,Children & Education Services,Tesco Stores 2328 ,05/10/2015,74.28,Purchase Card Statement Summary,111200 - Catering - Food & Beverages,
Solihull MBC,Children's Services - DSG Schools - Non DMT,Children & Education Services,Tesco Stores 2328 ,05/10/2015,100.20,Purchase Card Statement Summary,291100 - Arts & Leisure Services - Museums & Arts,
Solihull MBC,Children's Services - DSG Schools - Non DMT,Children & Education Services,Tesco Stores 2328 ,05/10/2015,109.12,Purchase Card Statement Summary,169999 - Domestic Goods - Not Elsewhere Classified,
Solihull MBC,Children's Services - DSG Schools - Non DMT,Children & Education Services,Tesco Stores 2515 ,05/10/2015,7.00,Purchase Card Statement Summary,111200 - Catering - Food & Beverages,
Solihull MBC,Managed Growth,Highways & Transport Services,Tesco Stores 2624,10/08/2015,3.67,Purchase Card Statement Summary,111200 - Catering - Food & Beverages,
Solihull MBC,Children's Services - DSG Schools - Non DMT,Children & Education Services,Tesco Stores 2624 ,05/10/2015,3.04,Purchase Card Statement Summary,111200 - Catering - Food & Beverages,
Solihull MBC,Children's Services - DSG Schools - Non DMT,Children & Education Services,Tesco Stores 2624 ,05/10/2015,11.19,Purchase Card Statement Summary,111200 - Catering - Food & Beverages,
Solihull MBC,Communities & Adult Social Care,Adult Social Care,Tesco Stores 2785 ,05/10/2015,5.50,Purchase Card Statement Summary,111200 - Catering - Food & Beverages,
Solihull MBC,Managed Growth,Environmental and Regulatory Services,Tesco Stores 2785 ,05/10/2015,6.75,Purchase Card Statement Summary,111200 - Catering - Food & Beverages,
Solihull MBC,Communities & Adult Social Care,Adult Social Care,Tesco Stores 2785 ,05/10/2015,7.92,Purchase Card Statement Summary,111200 - Catering - Food & Beverages,
Solihull MBC,Children's Services - DSG Schools - Non DMT,Children & Education Services,Tesco Stores 5114 ,05/10/2015,18,Purchase Card Statement Summary,111200 - Catering - Food & Beverages,
Solihull MBC,Children's Services - DSG Schools - Non DMT,Children & Education Services,Tesco Stores 5203 ,05/10/2015,20.96,Purchase Card Statement Summary,111200 - Catering - Food & Beverages,
Solihull MBC,Communities & Adult Social Care,Adult Social Care,Tesco-Stores 3188 ,05/10/2015,3.65,Purchase Card Statement Summary,111200 - Catering - Food & Beverages,
Solihull MBC,Children's Services - DSG Schools - Non DMT,Children & Education Services,Tesco-Stores 3188 ,05/10/2015,14.00,Purchase Card Statement Summary,111200 - Catering - Food & Beverages,
Solihull MBC,Communities & Adult Social Care,Adult Social Care,Tesco-Stores 6463 ,05/10/2015,7.59,Purchase Card Statement Summary,111200 - Catering - Food & Beverages,
Solihull MBC,Communities & Adult Social Care,Adult Social Care,Tesco-Stores 6463 ,05/10/2015,8.64,Purchase Card Statement Summary,111200 - Catering - Food & Beverages,
Solihull MBC,Children's Services & Skills,Children & Education Services,Tesco-Stores 6463 ,05/10/2015,36.77,Purchase Card Statement Summary,111200 - Catering - Food & Beverages,
Solihull MBC,Communities & Adult Social Care,Adult Social Care,Tesco-Stores 6463 ,05/10/2015,36.85,Purchase Card Statement Summary,111200 - Catering - Food & Beverages,
Solihull MBC,Communities & Adult Social Care,Adult Social Care,Tesco-Stores 6463 ,05/10/2015,62.63,Purchase Card Statement Summary,111200 - Catering - Food & Beverages,
Solihull MBC,Children's Services - DSG Schools - Non DMT,Children & Education Services,The Book People ,05/10/2015,9.94,Purchase Card Statement Summary,171114 - Education - Literature,
Solihull MBC,Managed Growth,Other Housing Services,The Chiltern Railw ,05/10/2015,4.10,Purchase Card Statement Summary,261600 - Human Resources - Travel & Subsistence,
Solihull MBC,Managed Growth,Highways & Transport Services,The Chiltern Railw ,05/10/2015,8.2,Purchase Card Statement Summary,261600 - Human Resources - Travel & Subsistence,
Solihull MBC,Managed Growth,Highways & Transport Services,The Chiltern Rlywy,03/08/2015,3.50,Purchase Card Statement Summary,261600 - Human Resources - Travel & Subsistence,
Solihull MBC,Resources,Central Services to the Public,The Chiltern Rlywy ,05/10/2015,4.10,Purchase Card Statement Summary,261600 - Human Resources - Travel & Subsistence,
Solihull MBC,Resources,Central Services to the Public,The Chiltern Rlywy ,05/10/2015,4.10,Purchase Card Statement Summary,261600 - Human Resources - Travel & Subsistence,
Solihull MBC,Managed Growth,Other Housing Services,The Chiltern Rlywy ,05/10/2015,5.50,Purchase Card Statement Summary,261600 - Human Resources - Travel & Subsistence,
Solihull MBC,Resources,Central Services to the Public,The Chiltern Rlywy ,05/10/2015,58.00,Purchase Card Statement Summary,261600 - Human Resources - Travel & Subsistence,
Solihull MBC,Resources,Central Services to the Public,The Chiltern Rlywy ,05/10/2015,96.00,Purchase Card Statement Summary,169999 - Domestic Goods - Not Elsewhere Classified,
Solihull MBC,Resources,Central Services to the Public,The Chiltern Rlywy ,05/10/2015,268.00,Purchase Card Statement Summary,271430 - Information Communication Technology - Software - Commercial Off-The-Shelf,
Solihull MBC,Communities & Adult Social Care,Adult Social Care,The Finest Catch ,05/10/2015,15.15,Purchase Card Statement Summary,261600 - Human Resources - Travel & Subsistence,
Solihull MBC,Children's Services - DSG Schools - Non DMT,Children & Education Services,The Football ,05/10/2015,460.00,Purchase Card Statement Summary,171114 - Education - Literature,
Solihull MBC,Children's Services & Skills,Children & Education Services,The Plastic Box Compan,07/08/2015,86.00,General Office Expenses,111100 - Catering - Equipment & Utensils,
Solihull MBC,Business Change,Central Services to the Public,The Plastic Box Compan ,05/10/2015,29.71,Purchase Card Statement Summary,111100 - Catering - Equipment & Utensils,
Solihull MBC,Communities & Adult Social Care,Adult Social Care,The Post Office,29/08/2015,1.73,Purchase Card Statement Summary,301200 - Mail Services - Postage,
Solihull MBC,Communities & Adult Social Care,Adult Social Care,The Post Office,02/09/2015,1.73,Purchase Card Statement Summary,301200 - Mail Services - Postage,
Solihull MBC,Children's Services & Skills,Children & Education Services,The Post Office,01/09/2015,6.45,Clients Expenses,301200 - Mail Services - Postage,
Solihull MBC,Children's Services & Skills,Children & Education Services,The Post Office,01/09/2015,15.12,Purchase Card Statement Summary,301200 - Mail Services - Postage,
Solihull MBC,Children's Services - DSG Schools - Non DMT,Children & Education Services,The Post Office ,05/10/2015,1.73,Purchase Card Statement Summary,301200 - Mail Services - Postage,
Solihull MBC,Children's Services & Skills,Children & Education Services,The Post Office ,05/10/2015,63.00,Purchase Card Statement Summary,301200 - Mail Services - Postage,
Solihull MBC,Children's Services - DSG Schools - Non DMT,Children & Education Services,The Post Office ,05/10/2015,70.20,Purchase Card Statement Summary,301200 - Mail Services - Postage,
Solihull MBC,Children's Services & Skills,Children & Education Services,The Post Office ,05/10/2015,126.00,Purchase Card Statement Summary,111200 - Catering - Food & Beverages,
Solihull MBC,Children's Services - DSG Schools - Non DMT,Children & Education Services,The Range ,05/10/2015,12.48,Purchase Card Statement Summary,169999 - Domestic Goods - Not Elsewhere Classified,
Solihull MBC,Children's Services - DSG Schools - Non DMT,Children & Education Services,The Range ,05/10/2015,60.32,Purchase Card Statement Summary,169999 - Domestic Goods - Not Elsewhere Classified,
Solihull MBC,Children's Services - DSG Schools - Non DMT,Children & Education Services,The Range ,05/10/2015,61.95,Purchase Card Statement Summary,169999 - Domestic Goods - Not Elsewhere Classified,
Solihull MBC,Children's Services - DSG Schools - Non DMT,Children & Education Services,The Range ,05/10/2015,95.98,Purchase Card Statement Summary,111200 - Catering - Food & Beverages,
Solihull MBC,Children's Services - DSG Schools - Non DMT,Children & Education Services,The Trainline.Co ,05/10/2015,21.67,Purchase Card Statement Summary,261600 - Human Resources - Travel & Subsistence,
Solihull MBC,Children's Services - DSG Schools - Non DMT,Children & Education Services,The Trainline.Co ,05/10/2015,70.38,Purchase Card Statement Summary,261600 - Human Resources - Travel & Subsistence,
Solihull MBC,Children's Services - DSG Schools - Non DMT,Children & Education Services,Thinktank ,05/10/2015,18,Purchase Card Statement Summary,291100 - Arts & Leisure Services - Museums & Arts,
Solihull MBC,Children's Services - DSG Schools - Non DMT,Children & Education Services,Thinktank ,05/10/2015,100.00,Purchase Card Statement Summary,111200 - Catering - Food & Beverages,
Solihull MBC,Public Health & Commissioning ,Central Services to the Public,Three-Topup(Web),17/08/2015,15.00,Purchase Card Statement Summary,271699 - Information Communications Technology - Telecommunications,
Solihull MBC,Business Change,Central Services to the Public,Timpson Ltd,18/08/2015,12.00,Purchase Card Statement Summary,149999 - Clothing - Not Elsewhere Classified,
Solihull MBC,Resources,Central Services to the Public,Timpson Ltd,26/08/2015,18,Purchase Card Statement Summary,149999 - Clothing - Not Elsewhere Classified,
Solihull MBC,Children's Services - DSG Schools - Non DMT,Children & Education Services,TMD Supplies Ltd ,05/10/2015,95.88,Purchase Card Statement Summary,161000 - Domestic Goods - Commercial,
Solihull MBC,Managed Growth,Cultural & Related Services,Toolman Yardley Limited ,05/10/2015,23.96,Purchase Card Statement Summary,101400 - Building Construction Materials - General Materials,
Solihull MBC,Children's Services - DSG Schools - Non DMT,Children & Education Services,Toolman Yardley Limited ,05/10/2015,97.82,Purchase Card Statement Summary,111200 - Catering - Food & Beverages,
Solihull MBC,Children's Services & Skills,Children & Education Services,Top Up,28/07/2015,10.99,General Office Expenses,271699 - Information Communications Technology - Telecommunications,
Solihull MBC,Children's Services & Skills,Children & Education Services,Top Up,13/08/2015,10.99,General Office Expenses,271699 - Information Communications Technology - Telecommunications,
Solihull MBC,Children's Services & Skills,Children & Education Services,Top Up,28/07/2015,10.99,General Office Expenses,271699 - Information Communications Technology - Telecommunications,
Solihull MBC,Children's Services & Skills,Children & Education Services,Top Up,13/08/2015,10.99,General Office Expenses,271699 - Information Communications Technology - Telecommunications,
Solihull MBC,Children's Services & Skills,Children & Education Services,Top Up,28/07/2015,10.99,General Office Expenses,271699 - Information Communications Technology - Telecommunications,
Solihull MBC,Children's Services & Skills,Children & Education Services,Top Up,13/08/2015,10.99,General Office Expenses,271699 - Information Communications Technology - Telecommunications,
Solihull MBC,Children's Services & Skills,Children & Education Services,Top Up,28/07/2015,10.99,General Office Expenses,271699 - Information Communications Technology - Telecommunications,
Solihull MBC,Children's Services & Skills,Children & Education Services,Top Up,28/07/2015,10.99,General Office Expenses,271699 - Information Communications Technology - Telecommunications,
Solihull MBC,Children's Services & Skills,Children & Education Services,Top Up,28/07/2015,10.99,General Office Expenses,271699 - Information Communications Technology - Telecommunications,
Solihull MBC,Children's Services & Skills,Children & Education Services,Top Up,13/08/2015,10.99,General Office Expenses,271699 - Information Communications Technology - Telecommunications,
Solihull MBC,Children's Services & Skills,Children & Education Services,Top Up,28/07/2015,10.99,General Office Expenses,271699 - Information Communications Technology - Telecommunications,
Solihull MBC,Children's Services & Skills,Children & Education Services,Top Up,13/08/2015,10.99,General Office Expenses,271699 - Information Communications Technology - Telecommunications,
Solihull MBC,Children's Services & Skills,Children & Education Services,Top Up,13/08/2015,10.99,General Office Expenses,271699 - Information Communications Technology - Telecommunications,
Solihull MBC,Managed Growth,Cultural & Related Services,Touchwood Solihull,27/08/2015,2.58,Car Allowances: Officers,261600 - Human Resources - Travel & Subsistence,
Solihull MBC,Managed Growth,Cultural & Related Services,Touchwood Solihull,19/08/2015,3.33,Car Allowances: Officers,261600 - Human Resources - Travel & Subsistence,
Solihull MBC,Managed Growth,Cultural & Related Services,Touchwood Solihull,13/08/2015,4.67,Car Allowances: Officers,261600 - Human Resources - Travel & Subsistence,
Solihull MBC,Children's Services - DSG Schools - Non DMT,Children & Education Services,Toys R Us ,05/10/2015,37.97,Purchase Card Statement Summary,169999 - Domestic Goods - Not Elsewhere Classified,
Solihull MBC,Children's Services - DSG Schools - Non DMT,Children & Education Services,Toys R Us ,05/10/2015,209.99,Purchase Card Statement Summary,169999 - Domestic Goods - Not Elsewhere Classified,
Solihull MBC,Managed Growth - HRA,Housing Revenue Account,Trainline ,05/10/2015,39.27,General Debtors,261600 - Human Resources - Travel & Subsistence,
Solihull MBC,Children's Services & Skills,Children & Education Services,Trainline ,05/10/2015,98.53,Purchase Card Statement Summary,102500 - Building Construction Materials - Timber,
Solihull MBC,Communities & Adult Social Care,Adult Social Care,Trainline ,05/10/2015,203.59,Purchase Card Statement Summary,169999 - Domestic Goods - Not Elsewhere Classified,
Solihull MBC,Children's Services & Skills,Children & Education Services,Trainline.com ,05/10/2015,-85,Purchase Card Statement Summary,261600 - Human Resources - Travel & Subsistence,
Solihull MBC,Children's Services & Skills,Children & Education Services,Trainline.com ,05/10/2015,41.05,Purchase Card Statement Summary,261600 - Human Resources - Travel & Subsistence,
Solihull MBC,Managed Growth - HRA,Housing Revenue Account,Trainline.com ,05/10/2015,88.23,General Debtors,111200 - Catering - Food & Beverages,
Solihull MBC,Children's Services & Skills,Children & Education Services,Trainline.com ,05/10/2015,154.02,Purchase Card Statement Summary,191000 - Facilities & Management Services - Advertising,
Solihull MBC,Governance  ,Central Services to the Public,Travelodge Agent,24/08/2015,10.83,Purchase Card Statement Summary,261000 - Human Resources - Accommodation,
Solihull MBC,Communities & Adult Social Care,Adult Social Care,Tribe Eatery ,05/10/2015,84,Purchase Card Statement Summary,169999 - Domestic Goods - Not Elsewhere Classified,
Solihull MBC,Children's Services & Skills,Children & Education Services,Tvlicensing.co.uk ,05/10/2015,145.50,Purchase Card Statement Summary,291120 - Arts & Leisure Services - Organised Activities,
Solihull MBC,Children's Services & Skills,Children & Education Services,Tvlicensing.co.uk ,05/10/2015,145.50,Purchase Card Statement Summary,151900 - Consultancy - Management,
Solihull MBC,Children's Services - DSG Schools - Non DMT,Children & Education Services,Twinkl Ltd ,05/10/2015,69.99,Purchase Card Statement Summary,201711 - Financial Services - Grants - Non-charitable,
Solihull MBC,Managed Growth,Highways & Transport Services,Tyretraders.com Li ,05/10/2015,54.00,Purchase Card Statement Summary,381500 - Vehicle Management - Parts,
Solihull MBC,Resources,Central Services to the Public,UKPaperrolls.com,24/08/2015,138.95,Purchase Card Statement Summary,341100 - Stationery - Sundries,
Solihull MBC,Children's Services & Skills,Children & Education Services,United Blinds ( UK) Li ,05/10/2015,140.00,Purchase Card Statement Summary,169999 - Domestic Goods - Not Elsewhere Classified,
Solihull MBC,Children's Services - DSG Schools - Non DMT,Children & Education Services,Vistapr*Vistaprint.Uk ,05/10/2015,25.78,Purchase Card Statement Summary,349999 - Stationery - Not Elsewhere Classified,
Solihull MBC,Communities & Adult Social Care,Adult Social Care,W M Morrison ,05/10/2015,3.00,Purchase Card Statement Summary,111200 - Catering - Food & Beverages,
Solihull MBC,Communities & Adult Social Care,Adult Social Care,W M Morrison ,05/10/2015,5.53,Purchase Card Statement Summary,111200 - Catering - Food & Beverages,
Solihull MBC,Communities & Adult Social Care,Adult Social Care,W M Morrison ,05/10/2015,6.64,Purchase Card Statement Summary,111200 - Catering - Food & Beverages,
Solihull MBC,Children's Services - DSG Schools - Non DMT,Children & Education Services,W M Morrison ,05/10/2015,11.32,Purchase Card Statement Summary,111200 - Catering - Food & Beverages,
Solihull MBC,Communities & Adult Social Care,Adult Social Care,W M Morrison ,05/10/2015,17.03,Purchase Card Statement Summary,111200 - Catering - Food & Beverages,
Solihull MBC,Children's Services - DSG Schools - Non DMT,Children & Education Services,W M Morrison ,05/10/2015,20.00,Purchase Card Statement Summary,111200 - Catering - Food & Beverages,
Solihull MBC,Children's Services - DSG Schools - Non DMT,Children & Education Services,W M Morrison ,05/10/2015,32.01,Purchase Card Statement Summary,381100 - Vehicle Management - Fuel,
Solihull MBC,Children's Services - DSG Schools - Non DMT,Children & Education Services,W M Morrison ,05/10/2015,32.73,Purchase Card Statement Summary,111200 - Catering - Food & Beverages,
Solihull MBC,Children's Services - DSG Schools - Non DMT,Children & Education Services,W M Morrison ,05/10/2015,33.72,Purchase Card Statement Summary,111200 - Catering - Food & Beverages,
Solihull MBC,Communities & Adult Social Care,Adult Social Care,W M Morrison ,05/10/2015,58.05,Purchase Card Statement Summary,111200 - Catering - Food & Beverages,
Solihull MBC,Children's Services - DSG Schools - Non DMT,Children & Education Services,W M Morrison ,05/10/2015,58.22,Purchase Card Statement Summary,111200 - Catering - Food & Beverages,
Solihull MBC,Communities & Adult Social Care,Adult Social Care,W M Morrison ,05/10/2015,60.45,Purchase Card Statement Summary,111200 - Catering - Food & Beverages,
Solihull MBC,Communities & Adult Social Care,Adult Social Care,W M Morrison ,05/10/2015,75.53,Purchase Card Statement Summary,111200 - Catering - Food & Beverages,
Solihull MBC,Children's Services - DSG Schools - Non DMT,Children & Education Services,W M Morrison 073 ,05/10/2015,6.34,Purchase Card Statement Summary,111200 - Catering - Food & Beverages,
Solihull MBC,Business Change,Central Services to the Public,W M Morrisons,02/09/2015,5.83,Purchase Card Statement Summary,111200 - Catering - Food & Beverages,
Solihull MBC,Communities & Adult Social Care,Adult Social Care,W M Morrisons,26/08/2015,10.42,Purchase Card Statement Summary,111200 - Catering - Food & Beverages,
Solihull MBC,Resources,Other Housing Services,W M Morrisons,14/08/2015,10.56,Clients Expenses,111200 - Catering - Food & Beverages,
Solihull MBC,Resources,Central Services to the Public,W M Morrisons,14/08/2015,19.97,Purchase Card Statement Summary,111200 - Catering - Food & Beverages,
Solihull MBC,Communities & Adult Social Care,Adult Social Care,W M Morrisons,26/08/2015,22.27,Purchase Card Statement Summary,111200 - Catering - Food & Beverages,
Solihull MBC,Resources,Other Housing Services,W M Morrisons,07/08/2015,29.99,Purchase Card Statement Summary,111200 - Catering - Food & Beverages,
Solihull MBC,Resources,Central Services to the Public,W M Morrisons,14/08/2015,30.86,Purchase Card Statement Summary,111200 - Catering - Food & Beverages,
Solihull MBC,Children's Services - DSG Schools - Non DMT,Children & Education Services,W M Morrisons ,05/10/2015,4.00,Purchase Card Statement Summary,111200 - Catering - Food & Beverages,
Solihull MBC,Children's Services & Skills,Children & Education Services,W M Morrisons ,05/10/2015,4.99,Purchase Card Statement Summary,111200 - Catering - Food & Beverages,
Solihull MBC,Children's Services & Skills,Children & Education Services,W M Morrisons ,05/10/2015,7.00,Purchase Card Statement Summary,111200 - Catering - Food & Beverages,
Solihull MBC,Children's Services & Skills,Children & Education Services,W M Morrisons ,05/10/2015,7.17,Purchase Card Statement Summary,111200 - Catering - Food & Beverages,
Solihull MBC,Children's Services & Skills,Children & Education Services,W M Morrisons ,05/10/2015,8.9,Purchase Card Statement Summary,111200 - Catering - Food & Beverages,
Solihull MBC,Children's Services - DSG Schools - Non DMT,Children & Education Services,W M Morrisons ,05/10/2015,9.48,Purchase Card Statement Summary,111200 - Catering - Food & Beverages,
Solihull MBC,Children's Services - DSG Central.,Children & Education Services,W M Morrisons ,05/10/2015,10.61,Purchase Card Statement Summary,111200 - Catering - Food & Beverages,
Solihull MBC,Communities & Adult Social Care,Adult Social Care,W M Morrisons ,05/10/2015,13.26,Purchase Card Statement Summary,111200 - Catering - Food & Beverages,
Solihull MBC,Communities & Adult Social Care,Adult Social Care,W M Morrisons ,05/10/2015,14.14,Purchase Card Statement Summary,111200 - Catering - Food & Beverages,
Solihull MBC,Communities & Adult Social Care,Adult Social Care,W M Morrisons ,05/10/2015,17.92,Purchase Card Statement Summary,111200 - Catering - Food & Beverages,
Solihull MBC,Communities & Adult Social Care,Adult Social Care,W M Morrisons ,05/10/2015,20.00,Purchase Card Statement Summary,111200 - Catering - Food & Beverages,
Solihull MBC,Managed Growth - HRA,Housing Revenue Account,W M Morrisons ,05/10/2015,23.60,General Debtors,111200 - Catering - Food & Beverages,
Solihull MBC,Children's Services - DSG Schools - Non DMT,Children & Education Services,W M Morrisons ,05/10/2015,26.45,Purchase Card Statement Summary,111200 - Catering - Food & Beverages,
Solihull MBC,Children's Services & Skills,Children & Education Services,W M Morrisons ,05/10/2015,26.45,Purchase Card Statement Summary,111200 - Catering - Food & Beverages,
Solihull MBC,Communities & Adult Social Care,Adult Social Care,W M Morrisons ,05/10/2015,28.00,Purchase Card Statement Summary,111200 - Catering - Food & Beverages,
Solihull MBC,Children's Services & Skills,Children & Education Services,W M Morrisons ,05/10/2015,29.30,Purchase Card Statement Summary,111200 - Catering - Food & Beverages,
Solihull MBC,Communities & Adult Social Care,Adult Social Care,W M Morrisons ,05/10/2015,32.76,Purchase Card Statement Summary,111200 - Catering - Food & Beverages,
Solihull MBC,Communities & Adult Social Care,Adult Social Care,W M Morrisons ,05/10/2015,33.47,Purchase Card Statement Summary,111200 - Catering - Food & Beverages,
Solihull MBC,Communities & Adult Social Care,Adult Social Care,W M Morrisons ,05/10/2015,35.34,Purchase Card Statement Summary,111200 - Catering - Food & Beverages,
Solihull MBC,Children's Services & Skills,Children & Education Services,W M Morrisons ,05/10/2015,71.13,Purchase Card Statement Summary,111200 - Catering - Food & Beverages,
Solihull MBC,Communities & Adult Social Care,Adult Social Care,W M Morrisons ,05/10/2015,74.16,Purchase Card Statement Summary,111200 - Catering - Food & Beverages,
Solihull MBC,Communities & Adult Social Care,Adult Social Care,W M Morrisons ,05/10/2015,78.90,Purchase Card Statement Summary,111200 - Catering - Food & Beverages,
Solihull MBC,Communities & Adult Social Care,Adult Social Care,W M Morrisons ,05/10/2015,93.40,Purchase Card Statement Summary,111200 - Catering - Food & Beverages,
Solihull MBC,Communities & Adult Social Care,Adult Social Care,W M Morrisons ,05/10/2015,101.53,Purchase Card Statement Summary,111200 - Catering - Food & Beverages,
Solihull MBC,Children's Services & Skills,Children & Education Services,W M Morrisons ,05/10/2015,105.10,Purchase Card Statement Summary,271200 - Information Communications Technology - Hardware,
Solihull MBC,Communities & Adult Social Care,Adult Social Care,W M Morrisons ,05/10/2015,185.35,Purchase Card Statement Summary,111200 - Catering - Food & Beverages,
Solihull MBC,Business Change,Central Services to the Public,West Coast Trains,06/08/2015,5.30,Purchase Card Statement Summary,261600 - Human Resources - Travel & Subsistence,
Solihull MBC,Managed Growth,Highways & Transport Services,West Coast Trains ,05/10/2015,3.70,Purchase Card Statement Summary,261600 - Human Resources - Travel & Subsistence,
Solihull MBC,Managed Growth,Highways & Transport Services,West Coast Trains ,05/10/2015,5,Purchase Card Statement Summary,261600 - Human Resources - Travel & Subsistence,
Solihull MBC,Managed Growth,Other Housing Services,West Coast Trains ,05/10/2015,5.00,Purchase Card Statement Summary,261600 - Human Resources - Travel & Subsistence,
Solihull MBC,Managed Growth,Other Housing Services,West Coast Trains ,05/10/2015,8,Purchase Card Statement Summary,261600 - Human Resources - Travel & Subsistence,
Solihull MBC,Children's Services - DSG Schools - Non DMT,Children & Education Services,West Midlands Trav ,05/10/2015,58.5,Purchase Card Statement Summary,361300 - Public Transport - Passenger Transport,
Solihull MBC,Resources,Other Housing Services,West Midlands Trvl,10/08/2015,80.00,Clients Transport Costs,361300 - Public Transport - Passenger Transport,
Solihull MBC,Resources,Central Services to the Public,WH Smith,02/09/2015,2.98,General Office Expenses,349999 - Stationery - Not Elsewhere Classified,
Solihull MBC,Managed Growth,Cultural & Related Services,WH Smith,06/08/2015,19.97,Furniture & Equipment,349999 - Stationery - Not Elsewhere Classified,
Solihull MBC,Governance  ,Corporate & Democratic Core,Whitworths,25/08/2015,40.83,Materials,169999 - Domestic Goods - Not Elsewhere Classified,
Solihull MBC,Children's Services & Skills,Children & Education Services,Wickes ,05/10/2015,35.58,Purchase Card Statement Summary,101400 - Building Construction Materials - General Materials,
Solihull MBC,Children's Services & Skills,Children & Education Services,Wilko Retail Limit,17/08/2015,15.12,Purchase Card Statement Summary,169999 - Domestic Goods - Not Elsewhere Classified,
Solihull MBC,Business Change,Children & Education Services,Wilko Retail Limit,10/08/2015,84.8,Clients Expenses,169999 - Domestic Goods - Not Elsewhere Classified,
Solihull MBC,Managed Growth - HRA,Housing Revenue Account,Wilko Retail Limit ,05/10/2015,5.77,General Debtors,169999 - Domestic Goods - Not Elsewhere Classified,
Solihull MBC,Managed Growth - HRA,Housing Revenue Account,Wilko Retail Limit ,05/10/2015,10.24,General Debtors,169999 - Domestic Goods - Not Elsewhere Classified,
Solihull MBC,Children's Services & Skills,Children & Education Services,Wilko Retail Limit ,05/10/2015,12.80,Purchase Card Statement Summary,169999 - Domestic Goods - Not Elsewhere Classified,
Solihull MBC,Children's Services & Skills,Children & Education Services,Wilko Retail Limit ,05/10/2015,29.45,Purchase Card Statement Summary,169999 - Domestic Goods - Not Elsewhere Classified,
Solihull MBC,Children's Services - DSG Schools - Non DMT,Children & Education Services,Wilko Retail Limit ,05/10/2015,40.85,Purchase Card Statement Summary,169999 - Domestic Goods - Not Elsewhere Classified,
Solihull MBC,Children's Services - DSG Schools - Non DMT,Children & Education Services,Wilko Retail Limit ,05/10/2015,73.00,Purchase Card Statement Summary,169999 - Domestic Goods - Not Elsewhere Classified,
Solihull MBC,Children's Services - DSG Schools - Non DMT,Children & Education Services,Wilko Retail Limit ,05/10/2015,152.30,Purchase Card Statement Summary,169999 - Domestic Goods - Not Elsewhere Classified,
Solihull MBC,Resources,Central Services to the Public,Wilko.com,17/08/2015,91.67,Purchase Card Statement Summary,169999 - Domestic Goods - Not Elsewhere Classified,
Solihull MBC,Children's Services - DSG Schools - Non DMT,Children & Education Services,Wilko.com ,05/10/2015,19.5,Purchase Card Statement Summary,169999 - Domestic Goods - Not Elsewhere Classified,
Solihull MBC,Communities & Adult Social Care,Adult Social Care,Windrush Garden Cafe ,05/10/2015,28.85,Purchase Card Statement Summary,261600 - Human Resources - Travel & Subsistence,
Solihull MBC,Children's Services - DSG Schools - Non DMT,Children & Education Services,Wm Morrison Food.com ,05/10/2015,44.87,Purchase Card Statement Summary,111200 - Catering - Food & Beverages,
Solihull MBC,Children's Services - DSG Schools - Non DMT,Children & Education Services,Wm Morrison Food.com ,05/10/2015,45.69,Purchase Card Statement Summary,111200 - Catering - Food & Beverages,
Solihull MBC,Children's Services - DSG Schools - Non DMT,Children & Education Services,Wm Morrison Food.com ,05/10/2015,48.17,Purchase Card Statement Summary,111200 - Catering - Food & Beverages,
Solihull MBC,Children's Services - DSG Schools - Non DMT,Children & Education Services,Wm Morrison Food.com ,05/10/2015,72.88,Purchase Card Statement Summary,111200 - Catering - Food & Beverages,
Solihull MBC,Children's Services - DSG Schools - Non DMT,Children & Education Services,Wm Morrison Food.com ,05/10/2015,87.99,Purchase Card Statement Summary,161000 - Domestic Goods - Commercial,
Solihull MBC,Children's Services & Skills,Children & Education Services,www.Birmingham.gov.uk ,05/10/2015,-3,Purchase Card Statement Summary,171011 - Education - School Services,
Solihull MBC,Children's Services & Skills,Children & Education Services,www.Birmingham.gov.uk ,05/10/2015,12.00,Purchase Card Statement Summary,171011 - Education - School Services,
Solihull MBC,Children's Services & Skills,Children & Education Services,www.Birmingham.gov.uk ,05/10/2015,12.00,Purchase Card Statement Summary,171011 - Education - School Services,
Solihull MBC,Children's Services & Skills,Children & Education Services,www.Birmingham.gov.uk ,05/10/2015,22.00,Purchase Card Statement Summary,171011 - Education - School Services,
Solihull MBC,Children's Services - DSG Schools - Non DMT,Children & Education Services,www.Cgpbooks.co.uk ,05/10/2015,4.5,Purchase Card Statement Summary,161000 - Domestic Goods - Commercial,
Solihull MBC,Children's Services - DSG Schools - Non DMT,Children & Education Services,www.Furnitureatwork.Co ,05/10/2015,465.60,Purchase Card Statement Summary,291400 - Arts & Leisure Services - Sport & Fitness,
Solihull MBC,Children's Services - DSG Schools - Non DMT,Children & Education Services,www.Ico.gov.uk ,05/10/2015,35.00,Purchase Card Statement Summary,209999 - Financial Services - Not Elsewhere Classified,
Solihull MBC,Children's Services - DSG Schools - Non DMT,Children & Education Services,www.Ico.gov.uk ,05/10/2015,35.00,Purchase Card Statement Summary,209999 - Financial Services - Not Elsewhere Classified,
Solihull MBC,Managed Growth,Cultural & Related Services,Www.Independent.Co.UK,17/08/2015,58.5,Materials,161000 - Domestic Goods - Commercial,
Solihull MBC,Managed Growth,Cultural & Related Services,Www.Independent.Co.UK,17/08/2015,58.50,Materials,161000 - Domestic Goods - Commercial,
Solihull MBC,Managed Growth,Cultural & Related Services,Www.Independent.Co.UK,17/08/2015,58.50,Materials,161000 - Domestic Goods - Commercial,
Solihull MBC,Resources,Central Services to the Public,www.Ja.Net ,05/10/2015,360.00,Purchase Card Statement Summary,161000 - Domestic Goods - Commercial,
Solihull MBC,Children's Services - DSG Schools - Non DMT,Children & Education Services,www.Locksonline.co.uk ,05/10/2015,28.5,Purchase Card Statement Summary,101800 - Building Construction Materials - Kitchens,
Solihull MBC,Managed Growth,Environmental and Regulatory Services,www.Merlinlazer.com ,05/10/2015,208.80,Purchase Card Statement Summary,111200 - Catering - Food & Beverages,
Solihull MBC,Children's Services - DSG Schools - Non DMT,Children & Education Services,www.Mybigjohns.com ,05/10/2015,44.44,Purchase Card Statement Summary,261600 - Human Resources - Travel & Subsistence,
Solihull MBC,Children's Services - DSG Schools - Non DMT,Children & Education Services,www.Officefurnitureonl ,05/10/2015,58.80,Purchase Card Statement Summary,341100 - Stationery - Sundries,
Solihull MBC,Children's Services - DSG Schools - Non DMT,Children & Education Services,www.Osbornebooks.co.uk ,05/10/2015,62.55,Purchase Card Statement Summary,161000 - Domestic Goods - Commercial,
Solihull MBC,Children's Services - DSG Schools - Non DMT,Children & Education Services,www.Outoftheark.com ,05/10/2015,59.45,Purchase Card Statement Summary,291110 - Arts & Leisure Services - Professional Musical Instruments,
Solihull MBC,Children's Services & Skills,Children & Education Services,www.Pafca.co.uk ,05/10/2015,342.00,Purchase Card Statement Summary,102500 - Building Construction Materials - Timber,
Solihull MBC,Children's Services - DSG Schools - Non DMT,Children & Education Services,www.Primaryteaching.Co ,05/10/2015,77.55,Purchase Card Statement Summary,341100 - Stationery - Sundries,
Solihull MBC,Resources,Central Services to the Public,Www.Psaparts.Co.UK,20/08/2015,54.5,IT Equipment & Software,271600 - Information Communication Technology - Software - Customised & Bespoke,
Solihull MBC,Children's Services & Skills,Children & Education Services,www.Royalmail.com ,05/10/2015,173.50,Purchase Card Statement Summary,111200 - Catering - Food & Beverages,
Solihull MBC,Children's Services - DSG Schools - Non DMT,Children & Education Services,www.Smythstoys.com ,05/10/2015,45.98,Purchase Card Statement Summary,171117 - Education - Toys,
Solihull MBC,Children's Services & Skills,Children & Education Services,www.Staples.co.uk ,05/10/2015,78.96,Purchase Card Statement Summary,341100 - Stationery - Sundries,
Solihull MBC,Managed Growth,Cultural & Related Services,Www.Thebookseller.Com,17/08/2015,392.00,Materials,171114 - Education - Literature,
Solihull MBC,Managed Growth,Cultural & Related Services,www.Theglowcompany.co.uk ,05/10/2015,52.89,Purchase Card Statement Summary,161000 - Domestic Goods - Commercial,
Solihull MBC,Managed Growth,Cultural & Related Services,Www.Tts-Groups.Co.UK,05/08/2015,39.98,Furniture & Equipment,341100 - Stationery - Sundries,
Solihull MBC,Children's Services - DSG Schools - Non DMT,Children & Education Services,www.TTS-Groups.co.uk ,05/10/2015,95.94,Purchase Card Statement Summary,169999 - Domestic Goods - Not Elsewhere Classified,
Solihull MBC,Children's Services - DSG Schools - Non DMT,Children & Education Services,www.TTS-Groups.co.uk ,05/10/2015,220.52,Purchase Card Statement Summary,209999 - Financial Services - Not Elsewhere Classified,
Solihull MBC,Managed Growth,Cultural & Related Services,www.Ukpackaging.com ,05/10/2015,35.52,Purchase Card Statement Summary,341100 - Stationery - Sundries,
Solihull MBC,Managed Growth,Other Housing Services,York Plumbing Heat ,05/10/2015,10.00,Purchase Card Statement Summary,379999 - Utilities - Not Elsewhere Classified,
Solihull MBC,Managed Growth,Other Housing Services,York Plumbing Heat ,05/10/2015,20.00,Purchase Card Statement Summary,379999 - Utilities - Not Elsewhere Classified,
